{"text_format":"3","workbook":"xlsx","n_sheets":1,"sheets":["设备"],"not_rendered":{"defined_names":37},"read":"whole","date_system":"1900"}

{"sheet":"设备","index":0,"n_rows":185,"n_cols":19,"rows_kept":185,"merged":[[0,0,0,16],[1,0,2,0],[1,1,2,1],[1,2,2,2],[1,3,2,3],[1,4,1,14],[1,15,2,15],[1,16,2,16],[28,1,28,2],[53,1,53,2],[78,1,78,2],[103,1,103,2],[139,1,139,2],[154,1,154,2],[184,1,184,2]]}
["设备统计量"]
["序号","设备名称","型号与规格","单位","数量",{"$nulls":10},"总计","备注"]
[null,"设备名称","型号与规格","单位","机房","一层","二层","三层","四层","五层","六层","七层","八层","九层","屋顶"]
[4,"箱型离心排风风机","PF-1-1-1；服务区域：1#呼吸道门诊清洁区；使用时段：平时+疫情；系统功能：平时排风；\n风量:2150m3/h；全压:250Pa；静压：237Pa；电功率/电压：0.18/220；转速：1400r/min；\n噪声：61dB(A)；风机效率：70%；\n功能段：进风段、粗效过滤段（G4）、中效过滤段（F7）、亚高效过滤段（H11）、风机段；\n备注：单风机，风机变频；参考尺寸LxWxH（mm）：2000x800x600；\n注：\n1、风机电机功率应以最终采购的设备为准；只有当设备确定具体型号，并由相关单位提供参数及控制要求后，相应电气配电设备；\n2、、所有混流加压风机、离心式风机箱、轴流风机、离心式管道风机上必须按设计编号在箱体的醒目位置打上金属标牌以便安装；\n3、所有减振器需待设备的厂家确定后，根据设备的重量再由专业公司进行二次选型；\n4、粗效过滤段（G4）：效率≥80%、初阻力≤50Pa，终阻力≤100Pa；中效过滤段（F7）：效率≥90%，初阻力≤100Pa；终阻力≤200Pa；亚高效过滤器（H11）：效率≥99.97%，初阻力≤250Pa，终阻力≤500Pa；\n5、所有加压风机均为吊装。","台",null,1,{"$nulls":9},{"$f":"SUM(E4:O4)","v":1},"设备清单与图纸标注设备参数不一致","1#楼","图纸上要求：\nPF-1-1-1；离心风机箱№3.15；\n风量:2150m3/h；全压:350Pa；0.37KW；380；"]
[5,"管道离心排风机","PF-1-1-2；服务区域：CT/DR；使用时段：平时；系统功能：事故后送/排风；\n风量:2200m3/h；全压:250Pa；静压：250Pa；电功率/电压：0.37/220；转速：1450r/min；\n噪声：61dB(A)；风机效率：70%；气体灭火后排风；\n注：\n1、风机电机功率应以最终采购的设备为准；只有当设备确定具体型号，并由相关单位提供参数及控制要求后，相应电气配电设备；\n2、、所有混流加压风机、离心式风机箱、轴流风机、离心式管道风机上必须按设计编号在箱体的醒目位置打上金属标牌以便安装；\n3、所有减振器需待设备的厂家确定后，根据设备的重量再由专业公司进行二次选型；\n4、粗效过滤段（G4）：效率≥80%、初阻力≤50Pa，终阻力≤100Pa；中效过滤段（F7）：效率≥90%，初阻力≤100Pa；终阻力≤200Pa；亚高效过滤器（H11）：效率≥99.97%，初阻力≤250Pa，终阻力≤500Pa；\n5、所有加压风机均为吊装。","台",null,1,{"$nulls":9},{"$f":"SUM(E5:O5)","v":1},"设备清单与图纸标注设备参数不一致","1#楼","图纸上要求：\nPF-1-1-2；轴流风机№3.15；\n风量:2150m3/h；全压:350Pa；0.37KW；380；"]
[6,"管道离心排风机","PF-1-1-3；服务区域：CT/DR；使用时段：平时；系统功能：事故后送/排风；\n风量:2200m3/h；全压:250Pa；静压：250Pa；电功率/电压：0.37/220；转速：1450r/min；\n噪声：61dB(A)；风机效率：70%；气体灭火后排风；\n注：\n1、风机电机功率应以最终采购的设备为准；只有当设备确定具体型号，并由相关单位提供参数及控制要求后，相应电气配电设备；\n2、、所有混流加压风机、离心式风机箱、轴流风机、离心式管道风机上必须按设计编号在箱体的醒目位置打上金属标牌以便安装；\n3、所有减振器需待设备的厂家确定后，根据设备的重量再由专业公司进行二次选型；\n4、粗效过滤段（G4）：效率≥80%、初阻力≤50Pa，终阻力≤100Pa；中效过滤段（F7）：效率≥90%，初阻力≤100Pa；终阻力≤200Pa；亚高效过滤器（H11）：效率≥99.97%，初阻力≤250Pa，终阻力≤500Pa；\n5、所有加压风机均为吊装。","台",null,1,{"$nulls":9},{"$f":"SUM(E6:O6)","v":1},"设备清单与图纸标注设备参数不一致","1#楼","图纸上要求：\nPF-1-1-3；轴流风机№3.15；\n风量:1700m3/h；全压:350Pa；0.37KW；380；"]
[7,"管道离心送风机","SF-1-1-1/2；服务区域：CT/DR；使用时段：平时；系统功能：事故后送/排风；\n风量:1800m3/h；全压:294Pa；静压：250Pa；电功率/电压：0.37/220；转速：1450r/min；\n噪声：61dB(A)；风机效率：70%；气体灭火后排风；\n注：\n1、风机电机功率应以最终采购的设备为准；只有当设备确定具体型号，并由相关单位提供参数及控制要求后，相应电气配电设备；\n2、、所有混流加压风机、离心式风机箱、轴流风机、离心式管道风机上必须按设计编号在箱体的醒目位置打上金属标牌以便安装；\n3、所有减振器需待设备的厂家确定后，根据设备的重量再由专业公司进行二次选型；\n4、粗效过滤段（G4）：效率≥80%、初阻力≤50Pa，终阻力≤100Pa；中效过滤段（F7）：效率≥90%，初阻力≤100Pa；终阻力≤200Pa；亚高效过滤器（H11）：效率≥99.97%，初阻力≤250Pa，终阻力≤500Pa；\n5、所有加压风机均为吊装。","台",null,2,{"$nulls":9},{"$f":"SUM(E7:O7)","v":2},null,"1#楼"]
[8,"箱型离心排风机","PF-1-W-1；服务区域：2/3/5/6层病房清洁区；使用时段：平时+疫情；系统功能：平时排风；\n风量:13500m3/h；全压:650Pa；静压：500Pa；电功率/电压：5.5/380；转速：1200r/min；\n噪声：64dB(A)；风机效率：70%；\n功能段：进风段、粗效过滤段（G4）、中效过滤段（F7）、亚高效过滤段（H11）、风机段；\n备注：单风机，风机变频；参考尺寸LxWxH（mm）：2800x1700x1000；\n注：\n1、风机电机功率应以最终采购的设备为准；只有当设备确定具体型号，并由相关单位提供参数及控制要求后，相应电气配电设备；\n2、、所有混流加压风机、离心式风机箱、轴流风机、离心式管道风机上必须按设计编号在箱体的醒目位置打上金属标牌以便安装；\n3、所有减振器需待设备的厂家确定后，根据设备的重量再由专业公司进行二次选型；\n4、粗效过滤段（G4）：效率≥80%、初阻力≤50Pa，终阻力≤100Pa；中效过滤段（F7）：效率≥90%，初阻力≤100Pa；终阻力≤200Pa；亚高效过滤器（H11）：效率≥99.97%，初阻力≤250Pa，终阻力≤500Pa；\n5、所有加压风机均为吊装。","台",{"$nulls":10},1,{"$f":"SUM(E8:O8)","v":1},null,"1#楼"]
[9,"箱型离心排风机","PF-1-W-2；服务区域：1层门诊半污染区；使用时段：平时+疫情；系统功能：平时排风；\n风量:8000m3/h；全压:600Pa；静压：500Pa；电功率/电压：4.0/380；转速：1350r/min；\n噪声：63dB(A)；风机效率：70%；\n功能段：进风段、粗效过滤段（G4）、中效过滤段（F7）、亚高效过滤段（H11）、风机段；\n备注：单风机，风机变频；参考尺寸LxWxH（mm）：2600x1400x800；\n注：\n1、风机电机功率应以最终采购的设备为准；只有当设备确定具体型号，并由相关单位提供参数及控制要求后，相应电气配电设备；\n2、、所有混流加压风机、离心式风机箱、轴流风机、离心式管道风机上必须按设计编号在箱体的醒目位置打上金属标牌以便安装；\n3、所有减振器需待设备的厂家确定后，根据设备的重量再由专业公司进行二次选型；\n4、粗效过滤段（G4）：效率≥80%、初阻力≤50Pa，终阻力≤100Pa；中效过滤段（F7）：效率≥90%，初阻力≤100Pa；终阻力≤200Pa；亚高效过滤器（H11）：效率≥99.97%，初阻力≤250Pa，终阻力≤500Pa；\n5、所有加压风机均为吊装。","台",{"$nulls":10},1,1,null,"1#楼"]
[10,"箱型离心排风机","PF-1-W-3~6；服务区域：2/3/5/6层病房半污染区；使用时段：平时+疫情；系统功能：平时排风；\n风量:8000m3/h；全压:600Pa；静压：500Pa；电功率/电压：4.0/380；转速：1350r/min；\n噪声：63dB(A)；风机效率：70%；\n功能段：进风段、粗效过滤段（G4）、中效过滤段（F7）、亚高效过滤段（H11）、风机段；\n备注：单风机，风机变频；参考尺寸LxWxH（mm）：2600x1400x800；\n注：\n1、风机电机功率应以最终采购的设备为准；只有当设备确定具体型号，并由相关单位提供参数及控制要求后，相应电气配电设备；\n2、、所有混流加压风机、离心式风机箱、轴流风机、离心式管道风机上必须按设计编号在箱体的醒目位置打上金属标牌以便安装；\n3、所有减振器需待设备的厂家确定后，根据设备的重量再由专业公司进行二次选型；\n4、粗效过滤段（G4）：效率≥80%、初阻力≤50Pa，终阻力≤100Pa；中效过滤段（F7）：效率≥90%，初阻力≤100Pa；终阻力≤200Pa；亚高效过滤器（H11）：效率≥99.97%，初阻力≤250Pa，终阻力≤500Pa；\n5、所有加压风机均为吊装。","台",{"$nulls":10},4,4,null,"1#楼"]
[11,"箱型离心排风机","PF-1-W-9~11/18；服务区域：2/3/5/6层病房污染区；使用时段：疫情；系统功能：平时排风；\n风量:8000m3/h；全压:600Pa；静压：500Pa；电功率/电压：4.0/380；转速：1350r/min；\n噪声：63dB(A)；风机效率：70%；\n功能段：进风段、粗效过滤段（G4）、中效过滤段（F7）、亚高效过滤段（H11）、风机段；\n备注：单风机，风机变频；参考尺寸LxWxH（mm）：2600x1400x800；\n注：\n1、风机电机功率应以最终采购的设备为准；只有当设备确定具体型号，并由相关单位提供参数及控制要求后，相应电气配电设备；\n2、、所有混流加压风机、离心式风机箱、轴流风机、离心式管道风机上必须按设计编号在箱体的醒目位置打上金属标牌以便安装；\n3、所有减振器需待设备的厂家确定后，根据设备的重量再由专业公司进行二次选型；\n4、粗效过滤段（G4）：效率≥80%、初阻力≤50Pa，终阻力≤100Pa；中效过滤段（F7）：效率≥90%，初阻力≤100Pa；终阻力≤200Pa；亚高效过滤器（H11）：效率≥99.97%，初阻力≤250Pa，终阻力≤500Pa；\n5、所有加压风机均为吊装。","台",{"$nulls":10},4,4,null,"1#楼"]
[12,"箱型离心排风机","PF-1-W-7/15/16/17；服务区域：2/3/5/6层病房污染区走道；使用时段：疫情；系统功能：平时排风；\n风量:6000m3/h；全压:600Pa；静压：500Pa；电功率/电压：3.0/380；转速：1350r/min；\n噪声：59dB(A)；风机效率：70%；\n功能段：进风段、粗效过滤段（G4）、中效过滤段（F7）、亚高效过滤段（H11）、风机段；\n备注：单风机，风机变频；参考尺寸LxWxH（mm）：2400x1000x800；\n注：\n1、风机电机功率应以最终采购的设备为准；只有当设备确定具体型号，并由相关单位提供参数及控制要求后，相应电气配电设备；\n2、、所有混流加压风机、离心式风机箱、轴流风机、离心式管道风机上必须按设计编号在箱体的醒目位置打上金属标牌以便安装；\n3、所有减振器需待设备的厂家确定后，根据设备的重量再由专业公司进行二次选型；\n4、粗效过滤段（G4）：效率≥80%、初阻力≤50Pa，终阻力≤100Pa；中效过滤段（F7）：效率≥90%，初阻力≤100Pa；终阻力≤200Pa；亚高效过滤器（H11）：效率≥99.97%，初阻力≤250Pa，终阻力≤500Pa；\n5、所有加压风机均为吊装。","台",{"$nulls":10},4,4,null,"1#楼"]
[13,"箱型离心排风机","PF-1-W-12/13/14/19；服务区域：2/3/5/6层病房污染区卫生间；使用时段：平时+疫情；系统功能：平时排风；\n风量:2000m3/h；全压:380Pa；静压：350Pa；电功率/电压：0.75/380；转速：1100r/min；\n噪声：56dB(A)；风机效率：70%；\n功能段：进风段、粗效过滤段（G4）、中效过滤段（F7）、亚高效过滤段（H11）、风机段；\n备注：单风机，风机变频；参考尺寸LxWxH（mm）：2000x800x600；\n注：\n1、风机电机功率应以最终采购的设备为准；只有当设备确定具体型号，并由相关单位提供参数及控制要求后，相应电气配电设备；\n2、、所有混流加压风机、离心式风机箱、轴流风机、离心式管道风机上必须按设计编号在箱体的醒目位置打上金属标牌以便安装；\n3、所有减振器需待设备的厂家确定后，根据设备的重量再由专业公司进行二次选型；\n4、粗效过滤段（G4）：效率≥80%、初阻力≤50Pa，终阻力≤100Pa；中效过滤段（F7）：效率≥90%，初阻力≤100Pa；终阻力≤200Pa；亚高效过滤器（H11）：效率≥99.97%，初阻力≤250Pa，终阻力≤500Pa；\n5、所有加压风机均为吊装。","台",{"$nulls":10},4,4,null,"1#楼"]
[14,"箱型离心排风机","PF-1-W-8；服务区域：1#呼吸道门诊污染区；使用时段：平时+疫情；系统功能：平时排风；\n风量:16000m3/h；全压:600Pa；静压：500Pa；电功率/电压：7.5/380；转速：1000r/min；\n噪声：63dB(A)；风机效率：70%；\n功能段：进风段、粗效过滤段（G4）、中效过滤段（F7）、亚高效过滤段（H11）、风机段；\n备注：单风机，风机变频；参考尺寸LxWxH（mm）：3000x1700x1000；\n注：\n1、风机电机功率应以最终采购的设备为准；只有当设备确定具体型号，并由相关单位提供参数及控制要求后，相应电气配电设备；\n2、、所有混流加压风机、离心式风机箱、轴流风机、离心式管道风机上必须按设计编号在箱体的醒目位置打上金属标牌以便安装；\n3、所有减振器需待设备的厂家确定后，根据设备的重量再由专业公司进行二次选型；\n4、粗效过滤段（G4）：效率≥80%、初阻力≤50Pa，终阻力≤100Pa；中效过滤段（F7）：效率≥90%，初阻力≤100Pa；终阻力≤200Pa；亚高效过滤器（H11）：效率≥99.97%，初阻力≤250Pa，终阻力≤500Pa；\n5、所有加压风机均为吊装。","台",{"$nulls":10},1,1,null,"1#楼"]
[null,"轴流加压风机","JY-1-W-1/3；风量:58500m3/h；全压:740Pa；电功率/电压：18.5/380；转速：980r/min；\n噪声：92dB(A)；风机效率：75%；","台",{"$nulls":10},2,2,null,"1#楼"]
[null,"轴流加压风机","JY-1-W-1/3；风量:31000m3/h；全压:600Pa；电功率/电压：7.5/380；转速：1440r/min；\n噪声：86dB(A)；风机效率：75%；","台",{"$nulls":10},2,2,null,"1#楼"]
[null,"轴流加压风机","JY-1-W-5；风量:31000m3/h；全压:600Pa；电功率/电压：7.5/380；转速：1440r/min；\n噪声：86dB(A)；风机效率：75%；","台",{"$nulls":10},1,1,null,"1#楼"]
[null,"轴流加压风机","JY-1-W-6；风量:30350m3/h；全压:700Pa；电功率/电压：11/380；转速：1460r/min；\n噪声：88dB(A)；风机效率：75%；","台",{"$nulls":10},1,1,null,"1#楼"]
[null,"轴流排烟风机","PY-1-W-1；风量:18000m3/h；全压:620Pa；电功率/电压：5.5/380；转速：1450r/min；\n噪声：86dB(A)；风机效率：75%；280℃下工作不小于30min；","台",{"$nulls":10},1,1,null,"1#楼"]
[null,"轴流排烟风机","PY-1-W-2；风量:36000m3/h；全压:668Pa；电功率/电压：11/380；转速：1450r/min；\n噪声：88dB(A)；风机效率：75%；280℃下工作不小于30min；","台",{"$nulls":10},1,1,null,"1#楼"]
[170,"壁式轴流排风机","PQ-5-W-11；\n风量：1200m³/h；全压：127Pa；功率：0.12/380V；转速：2900rpm,噪声：65dB(A)；\n风机效率75%；","台",{"$nulls":10},5,5,"防排烟图纸上","1#楼"]
[22,"板式高压静电空气净化装置","JH-1；适用风量：0~340m3/h；设备参考尺寸：L×W×H(mm)=485×250×100；重量：2.6Kg；\n电压/频率：220V/50HZ；功率：5W；风阻：＜15Pa；去除率(%)：微生物一次通过净化效率＞90%；PM2.5一次通过净化效率＞90%；配套使用的风机盘管编号 FP-34；","台",null,24,7,7,null,7,7,{"$nulls":4},{"$f":"SUM(E22:O22)","v":52},"风盘净化器","1#楼"]
[23,"板式高压静电空气净化装置","JH-2；适用风量：341~510m3/h；设备参考尺寸：L×W×H(mm)=635×250×100；重量：3.2Kg；\n电压/频率：220V/50HZ；功率：10W；风阻：＜15Pa；去除率(%)：微生物一次通过净化效率＞90%；PM2.5一次通过净化效率＞90%；配套使用的风机盘管编号 FP-51；","台",null,5,3,3,null,3,3,{"$nulls":4},17,"风盘净化器","1#楼"]
[24,"板式高压静电空气净化装置","JH-3；适用风量：511~680m3/h；设备参考尺寸：L×W×H(mm)=725×250×100；重量：3.6Kg；\n电压/频率：220V/50HZ；功率：10W；风阻：＜15Pa；去除率(%)：微生物一次通过净化效率＞90%；PM2.5一次通过净化效率＞90%；配套使用的风机盘管编号 FP-68；","台",null,9,10,10,null,10,10,{"$nulls":4},49,"风盘净化器","1#楼"]
[25,"板式高压静电空气净化装置","JH-4；适用风量：681~850m3/h；设备参考尺寸：L×W×H(mm)=775×250×100；重量：4.2Kg；\n电压/频率：220V/50HZ；功率：10W；风阻：＜15Pa；去除率(%)：微生物一次通过净化效率＞90%；PM2.5一次通过净化效率＞90%；配套使用的风机盘管编号 FP-85；","台",null,14,16,16,null,16,16,{"$nulls":4},78,"风盘净化器","1#楼"]
[26,"板式高压静电空气净化装置","JH-5；适用风量：851~1020m3/h；设备参考尺寸：L×W×H(mm)=875×250×100；重量：4.6Kg；\n电压/频率：220V/50HZ；功率：10W；风阻：＜15Pa；去除率(%)：微生物一次通过净化效率＞90%；PM2.5一次通过净化效率＞90%；配套使用的风机盘管编号 FP-102；","台",null,null,15,15,null,15,15,{"$nulls":4},60,"风盘净化器","1#楼"]
[27,"板式高压静电空气净化装置","JH-6；适用风量：1191~1360m3/h；设备参考尺寸：L×W×H(mm)=1255×250×100；重量：6.3Kg；\n电压/频率：220V/50HZ；功率：15W；风阻：＜15Pa；去除率(%)：微生物一次通过净化效率＞90%；PM2.5一次通过净化效率＞90%；配套使用的风机盘管编号 FP-136；","台",null,2,{"$nulls":9},2,"风盘净化器","1#楼"]
[28,"板式高压静电空气净化装置","JH-7；适用风量：1701~2040m3/h；设备参考尺寸：L×W×H(mm)=1700×250×100；重量：6.3Kg；\n电压/频率：220V/50HZ；功率：20W；风阻：＜15Pa；去除率(%)：微生物一次通过净化效率＞90%；PM2.5一次通过净化效率＞90%；配套使用的风机盘管编号 FP-204；","台",{"$nulls":11},0,"风盘净化器","1#楼"]
[32,"1#楼设备总计",null,"台",{"$nulls":11},{"$f":"SUM(P4:P28)","v":295}]
[36,"箱型离心排风风机","PF-2-1-1；服务区域：1#呼吸道门诊清洁区；使用时段：平时+疫情；系统功能：平时排风；\n风量:2150m3/h；全压:250Pa；静压：237Pa；电功率/电压：0.18/220；转速：1400r/min；\n噪声：61dB(A)；风机效率：70%；\n功能段：进风段、粗效过滤段（G4）、中效过滤段（F7）、亚高效过滤段（H11）、风机段；\n备注：单风机，风机变频；参考尺寸LxWxH（mm）：2000x800x600；\n注：\n1、风机电机功率应以最终采购的设备为准；只有当设备确定具体型号，并由相关单位提供参数及控制要求后，相应电气配电设备；\n2、、所有混流加压风机、离心式风机箱、轴流风机、离心式管道风机上必须按设计编号在箱体的醒目位置打上金属标牌以便安装；\n3、所有减振器需待设备的厂家确定后，根据设备的重量再由专业公司进行二次选型；\n4、粗效过滤段（G4）：效率≥80%、初阻力≤50Pa，终阻力≤100Pa；中效过滤段（F7）：效率≥90%，初阻力≤100Pa；终阻力≤200Pa；亚高效过滤器（H11）：效率≥99.97%，初阻力≤250Pa，终阻力≤500Pa；\n5、所有加压风机均为吊装。","台",null,1,{"$nulls":9},{"$f":"SUM(E30:O30)","v":1},"设备清单与图纸标注设备参数不一致","2#楼","图纸上要求：\nPF-2-1-1；离心风机箱№3.15；\n风量:2150m3/h；全压:350Pa；0.37KW；380；"]
[37,"管道离心排风机","PF-2-1-2/3/4；服务区域：CT/DR；使用时段：平时；系统功能：事故后送/排风；\n风量:2200m3/h；全压:250Pa；静压：250Pa；电功率/电压：0.37/220；转速：1450r/min；\n噪声：61dB(A)；风机效率：70%；气体灭火后排风；\n注：\n1、风机电机功率应以最终采购的设备为准；只有当设备确定具体型号，并由相关单位提供参数及控制要求后，相应电气配电设备；\n2、、所有混流加压风机、离心式风机箱、轴流风机、离心式管道风机上必须按设计编号在箱体的醒目位置打上金属标牌以便安装；\n3、所有减振器需待设备的厂家确定后，根据设备的重量再由专业公司进行二次选型；\n4、粗效过滤段（G4）：效率≥80%、初阻力≤50Pa，终阻力≤100Pa；中效过滤段（F7）：效率≥90%，初阻力≤100Pa；终阻力≤200Pa；亚高效过滤器（H11）：效率≥99.97%，初阻力≤250Pa，终阻力≤500Pa；\n5、所有加压风机均为吊装。","台",null,3,{"$nulls":9},{"$f":"SUM(E31:O31)","v":3},"设备清单与图纸标注设备参数不一致","2#楼","图纸上要求：\nPF-2-1-2/3/4；轴流风机№3.15；\n风量:2150m3/h；全压:350Pa；0.37KW；380；"]
[38,"管道离心送风机","SF-1-1-1/2；服务区域：CT/DR；使用时段：平时；系统功能：事故后送/排风；\n风量:1800m3/h；全压:294Pa；静压：250Pa；电功率/电压：0.37/220；转速：1450r/min；\n噪声：61dB(A)；风机效率：70%；气体灭火后排风；","台",null,0,{"$nulls":9},{"$f":"SUM(E32:O32)","v":0},"图纸中未找到这三台设备","2#楼"]
[39,"箱型离心排风机","PF-2-W-1；服务区域：2/3/5/6层病房清洁区；使用时段：平时+疫情；系统功能：平时排风；\n风量:13500m3/h；全压:650Pa；静压：500Pa；电功率/电压：5.5/380；转速：1200r/min；\n噪声：64dB(A)；风机效率：70%；\n功能段：进风段、粗效过滤段（G4）、中效过滤段（F7）、亚高效过滤段（H11）、风机段；\n备注：单风机，风机变频；参考尺寸LxWxH（mm）：2800x1700x1000；\n注：\n1、风机电机功率应以最终采购的设备为准；只有当设备确定具体型号，并由相关单位提供参数及控制要求后，相应电气配电设备；\n2、、所有混流加压风机、离心式风机箱、轴流风机、离心式管道风机上必须按设计编号在箱体的醒目位置打上金属标牌以便安装；\n3、所有减振器需待设备的厂家确定后，根据设备的重量再由专业公司进行二次选型；\n4、粗效过滤段（G4）：效率≥80%、初阻力≤50Pa，终阻力≤100Pa；中效过滤段（F7）：效率≥90%，初阻力≤100Pa；终阻力≤200Pa；亚高效过滤器（H11）：效率≥99.97%，初阻力≤250Pa，终阻力≤500Pa；\n5、所有加压风机均为吊装。","台",{"$nulls":10},1,{"$f":"SUM(E33:O33)","v":1},null,"2#楼"]
[40,"箱型离心排风机","PF-2-W-2；服务区域：1层门诊半污染区；使用时段：平时+疫情；系统功能：平时排风；\n风量:8000m3/h；全压:600Pa；静压：500Pa；电功率/电压：4.0/380；转速：1350r/min；\n噪声：63dB(A)；风机效率：70%；\n功能段：进风段、粗效过滤段（G4）、中效过滤段（F7）、亚高效过滤段（H11）、风机段；\n备注：单风机，风机变频；参考尺寸LxWxH（mm）：2600x1400x800；\n注：\n1、风机电机功率应以最终采购的设备为准；只有当设备确定具体型号，并由相关单位提供参数及控制要求后，相应电气配电设备；\n2、、所有混流加压风机、离心式风机箱、轴流风机、离心式管道风机上必须按设计编号在箱体的醒目位置打上金属标牌以便安装；\n3、所有减振器需待设备的厂家确定后，根据设备的重量再由专业公司进行二次选型；\n4、粗效过滤段（G4）：效率≥80%、初阻力≤50Pa，终阻力≤100Pa；中效过滤段（F7）：效率≥90%，初阻力≤100Pa；终阻力≤200Pa；亚高效过滤器（H11）：效率≥99.97%，初阻力≤250Pa，终阻力≤500Pa；\n5、所有加压风机均为吊装。","台",{"$nulls":10},1,{"$f":"SUM(E34:O34)","v":1},null,"2#楼"]
[41,"箱型离心排风机","PF-2-W-3~6；服务区域：2/3/5/6层病房半污染区；使用时段：平时+疫情；系统功能：平时排风；\n风量:8000m3/h；全压:600Pa；静压：500Pa；电功率/电压：4.0/380；转速：1350r/min；\n噪声：63dB(A)；风机效率：70%；\n功能段：进风段、粗效过滤段（G4）、中效过滤段（F7）、亚高效过滤段（H11）、风机段；\n备注：单风机，风机变频；参考尺寸LxWxH（mm）：2600x1400x800；\n注：\n1、风机电机功率应以最终采购的设备为准；只有当设备确定具体型号，并由相关单位提供参数及控制要求后，相应电气配电设备；\n2、、所有混流加压风机、离心式风机箱、轴流风机、离心式管道风机上必须按设计编号在箱体的醒目位置打上金属标牌以便安装；\n3、所有减振器需待设备的厂家确定后，根据设备的重量再由专业公司进行二次选型；\n4、粗效过滤段（G4）：效率≥80%、初阻力≤50Pa，终阻力≤100Pa；中效过滤段（F7）：效率≥90%，初阻力≤100Pa；终阻力≤200Pa；亚高效过滤器（H11）：效率≥99.97%，初阻力≤250Pa，终阻力≤500Pa；\n5、所有加压风机均为吊装。","台",{"$nulls":10},4,{"$f":"SUM(E35:O35)","v":4},null,"2#楼"]
[42,"箱型离心排风机","PF-2-W-9~11/18；服务区域：2/3/5/6层病房污染区；使用时段：疫情；系统功能：平时排风；\n风量:8000m3/h；全压:600Pa；静压：500Pa；电功率/电压：4.0/380；转速：1350r/min；\n噪声：63dB(A)；风机效率：70%；\n功能段：进风段、粗效过滤段（G4）、中效过滤段（F7）、亚高效过滤段（H11）、风机段；\n备注：单风机，风机变频；参考尺寸LxWxH（mm）：2600x1400x800；\n注：\n1、风机电机功率应以最终采购的设备为准；只有当设备确定具体型号，并由相关单位提供参数及控制要求后，相应电气配电设备；\n2、、所有混流加压风机、离心式风机箱、轴流风机、离心式管道风机上必须按设计编号在箱体的醒目位置打上金属标牌以便安装；\n3、所有减振器需待设备的厂家确定后，根据设备的重量再由专业公司进行二次选型；\n4、粗效过滤段（G4）：效率≥80%、初阻力≤50Pa，终阻力≤100Pa；中效过滤段（F7）：效率≥90%，初阻力≤100Pa；终阻力≤200Pa；亚高效过滤器（H11）：效率≥99.97%，初阻力≤250Pa，终阻力≤500Pa；\n5、所有加压风机均为吊装。","台",{"$nulls":10},4,4,null,"2#楼"]
[43,"箱型离心排风机","PF-2-W-7/15/16/17；服务区域：2/3/5/6层病房污染区走道；使用时段：疫情；系统功能：平时排风；\n风量:6000m3/h；全压:600Pa；静压：500Pa；电功率/电压：3.0/380；转速：1350r/min；\n噪声：59dB(A)；风机效率：70%；\n功能段：进风段、粗效过滤段（G4）、中效过滤段（F7）、亚高效过滤段（H11）、风机段；\n备注：单风机，风机变频；参考尺寸LxWxH（mm）：2400x1000x800；\n注：\n1、风机电机功率应以最终采购的设备为准；只有当设备确定具体型号，并由相关单位提供参数及控制要求后，相应电气配电设备；\n2、、所有混流加压风机、离心式风机箱、轴流风机、离心式管道风机上必须按设计编号在箱体的醒目位置打上金属标牌以便安装；\n3、所有减振器需待设备的厂家确定后，根据设备的重量再由专业公司进行二次选型；\n4、粗效过滤段（G4）：效率≥80%、初阻力≤50Pa，终阻力≤100Pa；中效过滤段（F7）：效率≥90%，初阻力≤100Pa；终阻力≤200Pa；亚高效过滤器（H11）：效率≥99.97%，初阻力≤250Pa，终阻力≤500Pa；\n5、所有加压风机均为吊装。","台",{"$nulls":10},4,4,null,"2#楼"]
[44,"箱型离心排风机","PF-2-W-12/13/14/19；服务区域：2/3/5/6层病房污染区卫生间；使用时段：平时+疫情；系统功能：平时排风；\n风量:2000m3/h；全压:380Pa；静压：350Pa；电功率/电压：0.75/380；转速：1100r/min；\n噪声：56dB(A)；风机效率：70%；\n功能段：进风段、粗效过滤段（G4）、中效过滤段（F7）、亚高效过滤段（H11）、风机段；\n备注：单风机，风机变频；参考尺寸LxWxH（mm）：2000x800x600；\n注：\n1、风机电机功率应以最终采购的设备为准；只有当设备确定具体型号，并由相关单位提供参数及控制要求后，相应电气配电设备；\n2、、所有混流加压风机、离心式风机箱、轴流风机、离心式管道风机上必须按设计编号在箱体的醒目位置打上金属标牌以便安装；\n3、所有减振器需待设备的厂家确定后，根据设备的重量再由专业公司进行二次选型；\n4、粗效过滤段（G4）：效率≥80%、初阻力≤50Pa，终阻力≤100Pa；中效过滤段（F7）：效率≥90%，初阻力≤100Pa；终阻力≤200Pa；亚高效过滤器（H11）：效率≥99.97%，初阻力≤250Pa，终阻力≤500Pa；\n5、所有加压风机均为吊装。","台",{"$nulls":10},4,4,null,"2#楼"]
[45,"箱型离心排风机","PF-2-W-8；服务区域：2#呼吸道门诊污染区；使用时段：平时+疫情；系统功能：平时排风；\n风量:16000m3/h；全压:600Pa；静压：500Pa；电功率/电压：7.5/380；转速：1000r/min；\n噪声：63dB(A)；风机效率：70%；\n功能段：进风段、粗效过滤段（G4）、中效过滤段（F7）、亚高效过滤段（H11）、风机段；\n备注：单风机，风机变频；参考尺寸LxWxH（mm）：3000x1700x1000；\n注：\n1、风机电机功率应以最终采购的设备为准；只有当设备确定具体型号，并由相关单位提供参数及控制要求后，相应电气配电设备；\n2、、所有混流加压风机、离心式风机箱、轴流风机、离心式管道风机上必须按设计编号在箱体的醒目位置打上金属标牌以便安装；\n3、所有减振器需待设备的厂家确定后，根据设备的重量再由专业公司进行二次选型；\n4、粗效过滤段（G4）：效率≥80%、初阻力≤50Pa，终阻力≤100Pa；中效过滤段（F7）：效率≥90%，初阻力≤100Pa；终阻力≤200Pa；亚高效过滤器（H11）：效率≥99.97%，初阻力≤250Pa，终阻力≤500Pa；\n5、所有加压风机均为吊装。","台",{"$nulls":10},1,1,null,"2#楼"]
[null,"轴流加压风机","JY-2-W-1/3；风量:58500m3/h；全压:740Pa；电功率/电压：18.5/380；转速：980r/min；\n噪声：92dB(A)；风机效率：75%；","台",{"$nulls":10},2,2,null,"2#楼"]
[null,"轴流加压风机","JY-2-W-1/3；风量:31000m3/h；全压:600Pa；电功率/电压：7.5/380；转速：1440r/min；\n噪声：86dB(A)；风机效率：75%；","台",{"$nulls":10},2,2,null,"2#楼"]
[null,"轴流加压风机","JY-2-W-5；风量:31000m3/h；全压:600Pa；电功率/电压：7.5/380；转速：1440r/min；\n噪声：86dB(A)；风机效率：75%；","台",{"$nulls":10},1,1,null,"2#楼"]
[null,"轴流加压风机","JY-2-W-6；风量:30350m3/h；全压:700Pa；电功率/电压：11/380；转速：1460r/min；\n噪声：88dB(A)；风机效率：75%；","台",{"$nulls":10},1,1,null,"2#楼"]
[null,"轴流排烟风机","PY-2-W-1；风量:18000m3/h；全压:620Pa；电功率/电压：5.5/380；转速：1450r/min；\n噪声：86dB(A)；风机效率：75%；280℃下工作不小于30min；","台",{"$nulls":10},1,1,null,"2#楼"]
[null,"轴流排烟风机","PY-2-W-2；风量:36000m3/h；全压:668Pa；电功率/电压：11/380；转速：1450r/min；\n噪声：88dB(A)；风机效率：75%；280℃下工作不小于30min；","台",{"$nulls":10},1,1,null,"2#楼"]
[170,"壁式轴流排风机","PQ-5-W-11；\n风量：1200m³/h；全压：127Pa；功率：0.12/380V；转速：2900rpm,噪声：65dB(A)；\n风机效率75%；","台",{"$nulls":10},5,5,"防排烟图纸上","2#楼"]
[53,"板式高压静电空气净化装置","JH-1；适用风量：0~340m3/h；设备参考尺寸：L×W×H(mm)=485×250×100；重量：2.6Kg；\n电压/频率：220V/50HZ；功率：5W；风阻：＜15Pa；去除率(%)：微生物一次通过净化效率＞90%；PM2.5一次通过净化效率＞90%；配套使用的风机盘管编号 FP-34；","台",null,33,7,7,null,7,7,{"$nulls":4},{"$f":"SUM(E47:O47)","v":61},"风盘净化器","2#楼"]
[54,"板式高压静电空气净化装置","JH-2；适用风量：341~510m3/h；设备参考尺寸：L×W×H(mm)=635×250×100；重量：3.2Kg；\n电压/频率：220V/50HZ；功率：10W；风阻：＜15Pa；去除率(%)：微生物一次通过净化效率＞90%；PM2.5一次通过净化效率＞90%；配套使用的风机盘管编号 FP-51；","台",null,6,3,3,null,3,3,{"$nulls":4},18,"风盘净化器","2#楼"]
[55,"板式高压静电空气净化装置","JH-3；适用风量：511~680m3/h；设备参考尺寸：L×W×H(mm)=725×250×100；重量：3.6Kg；\n电压/频率：220V/50HZ；功率：10W；风阻：＜15Pa；去除率(%)：微生物一次通过净化效率＞90%；PM2.5一次通过净化效率＞90%；配套使用的风机盘管编号 FP-68；","台",null,7,10,10,null,10,10,{"$nulls":4},47,"风盘净化器","2#楼"]
[56,"板式高压静电空气净化装置","JH-4；适用风量：681~850m3/h；设备参考尺寸：L×W×H(mm)=775×250×100；重量：4.2Kg；\n电压/频率：220V/50HZ；功率：10W；风阻：＜15Pa；去除率(%)：微生物一次通过净化效率＞90%；PM2.5一次通过净化效率＞90%；配套使用的风机盘管编号 FP-85；","台",null,11,16,16,null,16,16,{"$nulls":4},75,"风盘净化器","2#楼"]
[57,"板式高压静电空气净化装置","JH-5；适用风量：851~1020m3/h；设备参考尺寸：L×W×H(mm)=875×250×100；重量：4.6Kg；\n电压/频率：220V/50HZ；功率：10W；风阻：＜15Pa；去除率(%)：微生物一次通过净化效率＞90%；PM2.5一次通过净化效率＞90%；配套使用的风机盘管编号 FP-102；","台",null,null,15,15,null,15,15,{"$nulls":4},60,"风盘净化器","2#楼"]
[58,"板式高压静电空气净化装置","JH-6；适用风量：1191~1360m3/h；设备参考尺寸：L×W×H(mm)=1255×250×100；重量：6.3Kg；\n电压/频率：220V/50HZ；功率：15W；风阻：＜15Pa；去除率(%)：微生物一次通过净化效率＞90%；PM2.5一次通过净化效率＞90%；配套使用的风机盘管编号 FP-136；","台",null,5,{"$nulls":9},5,"风盘净化器","2#楼"]
[59,"板式高压静电空气净化装置","JH-7；适用风量：1701~2040m3/h；设备参考尺寸：L×W×H(mm)=1700×250×100；重量：6.3Kg；\n电压/频率：220V/50HZ；功率：20W；风阻：＜15Pa；去除率(%)：微生物一次通过净化效率＞90%；PM2.5一次通过净化效率＞90%；配套使用的风机盘管编号 FP-204；","台",{"$nulls":11},0,"风盘净化器","2#楼"]
[63,"2#楼设备总计",null,"台",{"$nulls":11},{"$f":"SUM(P30:P53)","v":302}]
[77,"板式高压静电空气净化装置","JH-1；适用风量：0~340m3/h；设备参考尺寸：L×W×H(mm)=485×250×100；重量：2.6Kg；\n电压/频率：220V/50HZ；功率：5W；风阻：＜15Pa；去除率(%)：微生物一次通过净化效率＞90%；PM2.5一次通过净化效率＞90%；配套使用的风机盘管编号 FP-34；","台",null,24,7,7,null,7,7,{"$nulls":4},{"$f":"SUM(E55:O55)","v":52},"风盘净化器","3#楼"]
[78,"板式高压静电空气净化装置","JH-2；适用风量：341~510m3/h；设备参考尺寸：L×W×H(mm)=635×250×100；重量：3.2Kg；\n电压/频率：220V/50HZ；功率：10W；风阻：＜15Pa；去除率(%)：微生物一次通过净化效率＞90%；PM2.5一次通过净化效率＞90%；配套使用的风机盘管编号 FP-51；","台",null,6,3,3,null,3,3,{"$nulls":4},18,"风盘净化器","3#楼"]
[79,"板式高压静电空气净化装置","JH-3；适用风量：511~680m3/h；设备参考尺寸：L×W×H(mm)=725×250×100；重量：3.6Kg；\n电压/频率：220V/50HZ；功率：10W；风阻：＜15Pa；去除率(%)：微生物一次通过净化效率＞90%；PM2.5一次通过净化效率＞90%；配套使用的风机盘管编号 FP-68；","台",null,8,10,10,null,10,10,{"$nulls":4},48,"风盘净化器","3#楼"]
[80,"板式高压静电空气净化装置","JH-4；适用风量：681~850m3/h；设备参考尺寸：L×W×H(mm)=775×250×100；重量：4.2Kg；\n电压/频率：220V/50HZ；功率：10W；风阻：＜15Pa；去除率(%)：微生物一次通过净化效率＞90%；PM2.5一次通过净化效率＞90%；配套使用的风机盘管编号 FP-85；","台",null,14,16,16,null,16,16,{"$nulls":4},78,"风盘净化器","3#楼"]
[81,"板式高压静电空气净化装置","JH-5；适用风量：851~1020m3/h；设备参考尺寸：L×W×H(mm)=875×250×100；重量：4.6Kg；\n电压/频率：220V/50HZ；功率：10W；风阻：＜15Pa；去除率(%)：微生物一次通过净化效率＞90%；PM2.5一次通过净化效率＞90%；配套使用的风机盘管编号 FP-102；","台",null,null,15,15,null,15,15,{"$nulls":4},60,"风盘净化器","3#楼"]
[82,"板式高压静电空气净化装置","JH-6；适用风量：1191~1360m3/h；设备参考尺寸：L×W×H(mm)=1255×250×100；重量：6.3Kg；\n电压/频率：220V/50HZ；功率：15W；风阻：＜15Pa；去除率(%)：微生物一次通过净化效率＞90%；PM2.5一次通过净化效率＞90%；配套使用的风机盘管编号 FP-136；","台",null,2,{"$nulls":9},2,"风盘净化器","3#楼"]
[83,"板式高压静电空气净化装置","JH-7；适用风量：1701~2040m3/h；设备参考尺寸：L×W×H(mm)=1700×250×100；重量：6.3Kg；\n电压/频率：220V/50HZ；功率：20W；风阻：＜15Pa；去除率(%)：微生物一次通过净化效率＞90%；PM2.5一次通过净化效率＞90%；配套使用的风机盘管编号 FP-204；","台",{"$nulls":11},0,"风盘净化器","3#楼"]
[84,"箱型离心排风风机","PF-3-1-1；服务区域：3#接触类传染病门诊清洁区；使用时段：平时+疫情；系统功能：平时排风；\n风量:2150m3/h；全压:250Pa；静压：237Pa；电功率/电压：0.18/220；转速：1400r/min；\n噪声：61dB(A)；风机效率：70%；\n功能段：进风段、风机段；备注：单风机，风机变频；\n注：\n1、风机电机功率应以最终采购的设备为准；只有当设备确定具体型号，并由相关单位提供参数及控制要求后，相应电气配电设备；\n2、、所有混流加压风机、离心式风机箱、轴流风机、离心式管道风机上必须按设计编号在箱体的醒目位置打上金属标牌以便安装；\n3、所有减振器需待设备的厂家确定后，根据设备的重量再由专业公司进行二次选型；\n4、粗效过滤段（G4）：效率≥80%、初阻力≤50Pa，终阻力≤100Pa；中效过滤段（F7）：效率≥90%，初阻力≤100Pa；终阻力≤200Pa；亚高效过滤器（H11）：效率≥99.97%，初阻力≤250Pa，终阻力≤500Pa；\n5、所有加压风机均为吊装。","台",null,1,{"$nulls":9},1,"设备清单与图纸标注设备参数不一致","3#楼","图纸上要求：\nPF-3-1-1；离心风机箱№3.15；\n风量:2150m3/h；全压:350Pa；0.37KW；380；"]
[85,"管道离心排风机","PF-3-1-2/3；服务区域：CT/DR；使用时段：平时；系统功能：事故后送/排风；\n风量:2200m3/h；全压:250Pa；静压：250Pa；电功率/电压：0.37/220；转速：1450r/min；\n噪声：61dB(A)；风机效率：70%；气体灭火后排风；\n注：\n1、风机电机功率应以最终采购的设备为准；只有当设备确定具体型号，并由相关单位提供参数及控制要求后，相应电气配电设备；\n2、、所有混流加压风机、离心式风机箱、轴流风机、离心式管道风机上必须按设计编号在箱体的醒目位置打上金属标牌以便安装；\n3、所有减振器需待设备的厂家确定后，根据设备的重量再由专业公司进行二次选型；\n4、粗效过滤段（G4）：效率≥80%、初阻力≤50Pa，终阻力≤100Pa；中效过滤段（F7）：效率≥90%，初阻力≤100Pa；终阻力≤200Pa；亚高效过滤器（H11）：效率≥99.97%，初阻力≤250Pa，终阻力≤500Pa；\n5、所有加压风机均为吊装。","台",null,2,{"$nulls":9},2,null,"3#楼"]
[86,"管道离心送风机","SF-3-1-1/2；服务区域：CT/DR；使用时段：平时；系统功能：事故后送/排风；\n风量:1800m3/h；全压:294Pa；静压：250Pa；电功率/电压：0.37/220；转速：1450r/min；\n噪声：61dB(A)；风机效率：70%；气体灭火后排风；\n注：\n1、风机电机功率应以最终采购的设备为准；只有当设备确定具体型号，并由相关单位提供参数及控制要求后，相应电气配电设备；\n2、、所有混流加压风机、离心式风机箱、轴流风机、离心式管道风机上必须按设计编号在箱体的醒目位置打上金属标牌以便安装；\n3、所有减振器需待设备的厂家确定后，根据设备的重量再由专业公司进行二次选型；\n4、粗效过滤段（G4）：效率≥80%、初阻力≤50Pa，终阻力≤100Pa；中效过滤段（F7）：效率≥90%，初阻力≤100Pa；终阻力≤200Pa；亚高效过滤器（H11）：效率≥99.97%，初阻力≤250Pa，终阻力≤500Pa；\n5、所有加压风机均为吊装。","台",null,2,{"$nulls":9},2,null,"3#楼"]
[87,"箱型离心排风机","PF-3-W-1；服务区域：2/3/5/6层病房清洁区；使用时段：平时+疫情；系统功能：平时排风；\n风量:13500m3/h；全压:600Pa；静压：500Pa；电功率/电压：5.5/380；转速：1200r/min；\n噪声：64dB(A)；风机效率：70%；功能段：进风段、风机段；\n注：\n1、风机电机功率应以最终采购的设备为准；只有当设备确定具体型号，并由相关单位提供参数及控制要求后，相应电气配电设备；\n2、、所有混流加压风机、离心式风机箱、轴流风机、离心式管道风机上必须按设计编号在箱体的醒目位置打上金属标牌以便安装；\n3、所有减振器需待设备的厂家确定后，根据设备的重量再由专业公司进行二次选型；\n4、粗效过滤段（G4）：效率≥80%、初阻力≤50Pa，终阻力≤100Pa；中效过滤段（F7）：效率≥90%，初阻力≤100Pa；终阻力≤200Pa；亚高效过滤器（H11）：效率≥99.97%，初阻力≤250Pa，终阻力≤500Pa；\n5、所有加压风机均为吊装。","台",{"$nulls":10},1,1,null,"3#楼"]
[88,"箱型离心排风机","PF-3-W-2~6；服务区域：1层门诊半污染区、2/3/5/6层病房半污染区；使用时段：\n疫情：风量：8000m3/h；全压：600Pa；静压：500Pa；电功率/电压：4/380kW/V；转速：1350r/min；噪声：63dB(A)；风机效率：70%；\n功能段：混合过滤段（G4）、中效过滤段（F7）、亚高效过滤段（H11）、盘管段、出风段；\n平时：风量：3200m3/h；全压：420Pa；静压：340Pa；电功率/电压：0.75/380kW/V；转速：1100r/min；噪声：63dB(A)；风机效率：70%；\n功能段：混进风段、风机段；参考尺寸：2600（L）x1400（W）x1400（H）；\n备注：双风机，平疫转换，风机定频，自带控制柜；\n注：\n1、风机电机功率应以最终采购的设备为准；只有当设备确定具体型号，并由相关单位提供参数及控制要求后，相应电气配电设备；\n2、、所有混流加压风机、离心式风机箱、轴流风机、离心式管道风机上必须按设计编号在箱体的醒目位置打上金属标牌以便安装；\n3、所有减振器需待设备的厂家确定后，根据设备的重量再由专业公司进行二次选型；\n4、粗效过滤段（G4）：效率≥80%、初阻力≤50Pa，终阻力≤100Pa；中效过滤段（F7）：效率≥90%，初阻力≤100Pa；终阻力≤200Pa；亚高效过滤器（H11）：效率≥99.97%，初阻力≤250Pa，终阻力≤500Pa；\n5、所有加压风机均为吊装。","台",{"$nulls":10},5,{"$f":"SUM(E66:O66)","v":5},null,"3#楼"]
[89,"箱型离心排风机","PF-3-W-9~11/18；服务区域：2/3/5/6层病房污染区；使用时段：\n疫情：风量：8000m3/h；全压：600Pa；静压：500Pa；电功率/电压：4/380kW/V；转速：1350r/min；噪声：63dB(A)；风机效率：70%；\n功能段：混合过滤段（G4）、中效过滤段（F7）、亚高效过滤段（H11）、盘管段、出风段；\n平时：风量：6000m3/h；全压：520Pa；静压：400Pa；电功率/电压：1.5/380kW/V；转速：1400r/min；噪声：60dB(A)；风机效率：70%；\n功能段：混进风段、风机段；参考尺寸：2600（L）x1400（W）x1400（H）；\n备注：双风机，平疫转换，风机定频，自带控制柜；\n注：\n1、风机电机功率应以最终采购的设备为准；只有当设备确定具体型号，并由相关单位提供参数及控制要求后，相应电气配电设备；\n2、、所有混流加压风机、离心式风机箱、轴流风机、离心式管道风机上必须按设计编号在箱体的醒目位置打上金属标牌以便安装；\n3、所有减振器需待设备的厂家确定后，根据设备的重量再由专业公司进行二次选型；\n4、粗效过滤段（G4）：效率≥80%、初阻力≤50Pa，终阻力≤100Pa；中效过滤段（F7）：效率≥90%，初阻力≤100Pa；终阻力≤200Pa；亚高效过滤器（H11）：效率≥99.97%，初阻力≤250Pa，终阻力≤500Pa；\n5、所有加压风机均为吊装。","台",{"$nulls":10},4,4,null,"3#楼"]
[90,"箱型离心排风机","PF-3-W-7/15/16/17；服务区域：2/3/5/6层病房污染区；使用时段：\n疫情：风量：6000m3/h；全压：600Pa；静压：500Pa；电功率/电压：3/380kW/V；转速：1350r/min；噪声：59dB(A)；风机效率：70%；\n功能段：混合过滤段（G4）、中效过滤段（F7）、亚高效过滤段（H11）、盘管段、出风段；\n平时：风量：3500m3/h；全压：520Pa；静压：400Pa；电功率/电压：1.5/380kW/V；转速：1400r/min；噪声：60dB(A)；风机效率：70%；\n功能段：进风段、风机段；参考尺寸：2500（L）x1200（W）x1400（H）；\n备注：双风机，平疫转换，风机定频，自带控制柜；\n注：\n1、风机电机功率应以最终采购的设备为准；只有当设备确定具体型号，并由相关单位提供参数及控制要求后，相应电气配电设备；\n2、、所有混流加压风机、离心式风机箱、轴流风机、离心式管道风机上必须按设计编号在箱体的醒目位置打上金属标牌以便安装；\n3、所有减振器需待设备的厂家确定后，根据设备的重量再由专业公司进行二次选型；\n4、粗效过滤段（G4）：效率≥80%、初阻力≤50Pa，终阻力≤100Pa；中效过滤段（F7）：效率≥90%，初阻力≤100Pa；终阻力≤200Pa；亚高效过滤器（H11）：效率≥99.97%，初阻力≤250Pa，终阻力≤500Pa；\n5、所有加压风机均为吊装。","台",{"$nulls":10},4,4,null,"3#楼"]
[91,"箱型离心排风机","PF-7-W-12/13/14/19；服务区域：2/3/5/6层病房污染区；使用时段：平时+疫情；\n风量：2000m3/h；全压：380Pa；静压：350Pa；电功率/电压：0.75/380kW/V；转速：1100r/min；\n噪声：56dB(A)；风机效率：70%；\n功能段：进风段、粗效过滤段（G4）、中效过滤段（F7）、亚高效过滤段（H11）、风机段；\n备注：单风机，风机定频；\n注：\n1、风机电机功率应以最终采购的设备为准；只有当设备确定具体型号，并由相关单位提供参数及控制要求后，相应电气配电设备；\n2、、所有混流加压风机、离心式风机箱、轴流风机、离心式管道风机上必须按设计编号在箱体的醒目位置打上金属标牌以便安装；\n3、所有减振器需待设备的厂家确定后，根据设备的重量再由专业公司进行二次选型；\n4、粗效过滤段（G4）：效率≥80%、初阻力≤50Pa，终阻力≤100Pa；中效过滤段（F7）：效率≥90%，初阻力≤100Pa；终阻力≤200Pa；亚高效过滤器（H11）：效率≥99.97%，初阻力≤250Pa，终阻力≤500Pa；\n5、所有加压风机均为吊装。","台",{"$nulls":10},4,4,null,"3#楼"]
[92,"箱型离心排风机","PF-7-W-8；服务区域：3#接触类传染病门诊污染区；使用时段：\n疫情：风量：16000m3/h；全压：600Pa；静压：500Pa；电功率/电压：7.5/380kW/V；转速：1000r/min；噪声：63dB(A)；风机效率：70%；\n功能段：进风段、粗效过滤段（G4）、中效过滤段（F7）、亚高效过滤段（H11）、风机段；\n平时：风量：5000m3/h；全压：400Pa；静压：340Pa；电功率/电压：1.1/380kW/V；转速：1000r/min；噪声：64dB(A)；风机效率：70%；\n功能段：进风段、风机段；参考尺寸：3000（L）x1700（W）x1800（H）；\n备注：双风机，平疫转换，风机定频，自带控制柜；\n注：\n1、风机电机功率应以最终采购的设备为准；只有当设备确定具体型号，并由相关单位提供参数及控制要求后，相应电气配电设备；\n2、、所有混流加压风机、离心式风机箱、轴流风机、离心式管道风机上必须按设计编号在箱体的醒目位置打上金属标牌以便安装；\n3、所有减振器需待设备的厂家确定后，根据设备的重量再由专业公司进行二次选型；\n4、粗效过滤段（G4）：效率≥80%、初阻力≤50Pa，终阻力≤100Pa；中效过滤段（F7）：效率≥90%，初阻力≤100Pa；终阻力≤200Pa；亚高效过滤器（H11）：效率≥99.97%，初阻力≤250Pa，终阻力≤500Pa；\n5、所有加压风机均为吊装。","台",{"$nulls":10},1,1,null,"3#楼"]
[null,"轴流加压风机","JY-3-W-1/3；风量:58500m3/h；全压:740Pa；电功率/电压：18.5/380；转速：980r/min；\n噪声：92dB(A)；风机效率：75%；","台",{"$nulls":10},2,2,null,"3#楼"]
[null,"轴流加压风机","JY-3-W-1/3；风量:31000m3/h；全压:600Pa；电功率/电压：7.5/380；转速：1440r/min；\n噪声：86dB(A)；风机效率：75%；","台",{"$nulls":10},2,2,null,"3#楼"]
[null,"轴流加压风机","JY-3-W-5；风量:31000m3/h；全压:600Pa；电功率/电压：7.5/380；转速：1440r/min；\n噪声：86dB(A)；风机效率：75%；","台",{"$nulls":10},1,1,null,"3#楼"]
[null,"轴流加压风机","JY-3-W-6；风量:30350m3/h；全压:700Pa；电功率/电压：11/380；转速：1460r/min；\n噪声：88dB(A)；风机效率：75%；","台",{"$nulls":10},1,1,null,"3#楼"]
[null,"轴流排烟风机","PY-3-W-1；风量:18000m3/h；全压:620Pa；电功率/电压：5.5/380；转速：1450r/min；\n噪声：86dB(A)；风机效率：75%；280℃下工作不小于30min；","台",{"$nulls":10},1,1,null,"3#楼"]
[null,"轴流排烟风机","PY-3-W-2；风量:36000m3/h；全压:668Pa；电功率/电压：11/380；转速：1450r/min；\n噪声：88dB(A)；风机效率：75%；280℃下工作不小于30min；","台",{"$nulls":10},1,1,null,"3#楼"]
[170,"壁式轴流排风机","PQ-5-W-11；\n风量：1200m³/h；全压：127Pa；功率：0.12/380V；转速：2900rpm,噪声：65dB(A)；\n风机效率75%；","台",{"$nulls":10},5,5,"防排烟图纸上","3#楼"]
[93,null,null,"台",{"$nulls":11},0,null,"3#楼"]
[94,"3#楼设备总计",null,"台",{"$nulls":11},{"$f":"SUM(P55:P78)","v":295}]
[98,"箱型离心排风风机","PF-4-1-1；服务区域：3#接触类传染病门诊清洁区；使用时段：平时+疫情；系统功能：平时排风；\n风量:2150m3/h；全压:250Pa；静压：237Pa；电功率/电压：0.18/220；转速：1400r/min；\n噪声：61dB(A)；风机效率：70%；\n功能段：进风段、风机段；备注：单风机，风机变频；\n注：\n1、风机电机功率应以最终采购的设备为准；只有当设备确定具体型号，并由相关单位提供参数及控制要求后，相应电气配电设备；\n2、、所有混流加压风机、离心式风机箱、轴流风机、离心式管道风机上必须按设计编号在箱体的醒目位置打上金属标牌以便安装；\n3、所有减振器需待设备的厂家确定后，根据设备的重量再由专业公司进行二次选型；\n4、粗效过滤段（G4）：效率≥80%、初阻力≤50Pa，终阻力≤100Pa；中效过滤段（F7）：效率≥90%，初阻力≤100Pa；终阻力≤200Pa；亚高效过滤器（H11）：效率≥99.97%，初阻力≤250Pa，终阻力≤500Pa；\n5、所有加压风机均为吊装。","台",null,1,{"$nulls":9},{"$f":"SUM(E80:O80)","v":1},"设备清单与图纸标注设备参数不一致","4#楼","图纸上要求：\nPF-4-1-1；离心风机箱№3.15；\n风量:2150m3/h；全压:350Pa；0.37KW；380；"]
[99,"管道离心排风机","PF-4-1-2；服务区域：CT/DR；使用时段：平时；系统功能：事故后送/排风；\n风量:2200m3/h；全压:250Pa；静压：250Pa；电功率/电压：0.37/220；转速：1450r/min；\n噪声：61dB(A)；风机效率：70%；气体灭火后排风；\n注：\n1、风机电机功率应以最终采购的设备为准；只有当设备确定具体型号，并由相关单位提供参数及控制要求后，相应电气配电设备；\n2、、所有混流加压风机、离心式风机箱、轴流风机、离心式管道风机上必须按设计编号在箱体的醒目位置打上金属标牌以便安装；\n3、所有减振器需待设备的厂家确定后，根据设备的重量再由专业公司进行二次选型；\n4、粗效过滤段（G4）：效率≥80%、初阻力≤50Pa，终阻力≤100Pa；中效过滤段（F7）：效率≥90%，初阻力≤100Pa；终阻力≤200Pa；亚高效过滤器（H11）：效率≥99.97%，初阻力≤250Pa，终阻力≤500Pa；\n5、所有加压风机均为吊装。","台",null,1,{"$nulls":9},{"$f":"SUM(E81:O81)","v":1},"设备清单与图纸标注设备参数不一致","4#楼","图纸上要求：\nPF-4-1-2；轴流风机№3.15；\n风量:2150m3/h；全压:350Pa；0.37KW；380；"]
[100,"管道离心排风机","PF-4-1-3；服务区域：CT/DR；使用时段：平时；系统功能：事故后送/排风；\n风量:2200m3/h；全压:250Pa；静压：250Pa；电功率/电压：0.37/220；转速：1450r/min；\n噪声：61dB(A)；风机效率：70%；气体灭火后排风；\n注：\n1、风机电机功率应以最终采购的设备为准；只有当设备确定具体型号，并由相关单位提供参数及控制要求后，相应电气配电设备；\n2、、所有混流加压风机、离心式风机箱、轴流风机、离心式管道风机上必须按设计编号在箱体的醒目位置打上金属标牌以便安装；\n3、所有减振器需待设备的厂家确定后，根据设备的重量再由专业公司进行二次选型；\n4、粗效过滤段（G4）：效率≥80%、初阻力≤50Pa，终阻力≤100Pa；中效过滤段（F7）：效率≥90%，初阻力≤100Pa；终阻力≤200Pa；亚高效过滤器（H11）：效率≥99.97%，初阻力≤250Pa，终阻力≤500Pa；\n5、所有加压风机均为吊装。","台",null,1,{"$nulls":9},{"$f":"SUM(E82:O82)","v":1},"设备清单与图纸标注设备参数不一致","4#楼","图纸上要求：\nPF-4-1-3；轴流风机№3.15；\n风量:1700m3/h；全压:350Pa；0.37KW；380；"]
[101,"管道离心送风机","SF-4-1-1/2；服务区域：CT/DR；使用时段：平时；系统功能：事故后送/排风；\n风量:1800m3/h；全压:294Pa；静压：250Pa；电功率/电压：0.37/220；转速：1450r/min；\n噪声：61dB(A)；风机效率：70%；气体灭火后排风；\n注：\n1、风机电机功率应以最终采购的设备为准；只有当设备确定具体型号，并由相关单位提供参数及控制要求后，相应电气配电设备；\n2、、所有混流加压风机、离心式风机箱、轴流风机、离心式管道风机上必须按设计编号在箱体的醒目位置打上金属标牌以便安装；\n3、所有减振器需待设备的厂家确定后，根据设备的重量再由专业公司进行二次选型；\n4、粗效过滤段（G4）：效率≥80%、初阻力≤50Pa，终阻力≤100Pa；中效过滤段（F7）：效率≥90%，初阻力≤100Pa；终阻力≤200Pa；亚高效过滤器（H11）：效率≥99.97%，初阻力≤250Pa，终阻力≤500Pa；\n5、所有加压风机均为吊装。","台",null,2,{"$nulls":9},{"$f":"SUM(E83:O83)","v":2},null,"4#楼"]
[102,"箱型离心排风机","PF-4-W-1；服务区域：2/3/5/6层病房清洁区；使用时段：平时+疫情；系统功能：平时排风；\n风量:13500m3/h；全压:600Pa；静压：500Pa；电功率/电压：5.5/380；转速：1200r/min；\n噪声：64dB(A)；风机效率：70%；功能段：进风段、风机段；\n注：\n1、风机电机功率应以最终采购的设备为准；只有当设备确定具体型号，并由相关单位提供参数及控制要求后，相应电气配电设备；\n2、、所有混流加压风机、离心式风机箱、轴流风机、离心式管道风机上必须按设计编号在箱体的醒目位置打上金属标牌以便安装；\n3、所有减振器需待设备的厂家确定后，根据设备的重量再由专业公司进行二次选型；\n4、粗效过滤段（G4）：效率≥80%、初阻力≤50Pa，终阻力≤100Pa；中效过滤段（F7）：效率≥90%，初阻力≤100Pa；终阻力≤200Pa；亚高效过滤器（H11）：效率≥99.97%，初阻力≤250Pa，终阻力≤500Pa；\n5、所有加压风机均为吊装。","台",{"$nulls":10},1,1,null,"4#楼"]
[103,"箱型离心排风机","PF-3-W-2~6；服务区域：1层门诊半污染区、2/3/5/6层病房半污染区；使用时段：\n疫情：风量：8000m3/h；全压：600Pa；静压：500Pa；电功率/电压：4/380kW/V；转速：1350r/min；噪声：63dB(A)；风机效率：70%；\n功能段：混合过滤段（G4）、中效过滤段（F7）、亚高效过滤段（H11）、盘管段、出风段；\n平时：风量：5000m3/h；全压：500Pa；静压：400Pa；电功率/电压：1.5/380kW/V；转速：1100r/min；噪声：58dB(A)；风机效率：70%；\n功能段：混进风段、风机段；参考尺寸：2600（L）x1400（W）x1400（H）；\n备注：双风机，平疫转换，风机定频，自带控制柜；\n注：\n1、风机电机功率应以最终采购的设备为准；只有当设备确定具体型号，并由相关单位提供参数及控制要求后，相应电气配电设备；\n2、、所有混流加压风机、离心式风机箱、轴流风机、离心式管道风机上必须按设计编号在箱体的醒目位置打上金属标牌以便安装；\n3、所有减振器需待设备的厂家确定后，根据设备的重量再由专业公司进行二次选型；\n4、粗效过滤段（G4）：效率≥80%、初阻力≤50Pa，终阻力≤100Pa；中效过滤段（F7）：效率≥90%，初阻力≤100Pa；终阻力≤200Pa；亚高效过滤器（H11）：效率≥99.97%，初阻力≤250Pa，终阻力≤500Pa；\n5、所有加压风机均为吊装。","台",{"$nulls":10},5,5,null,"4#楼"]
[104,"箱型离心排风机","PF-4-W-9~11/18；服务区域：2/3/5/6层病房污染区；使用时段：\n疫情：风量：8000m3/h；全压：600Pa；静压：500Pa；电功率/电压：4/380kW/V；转速：1000r/min；噪声：64dB(A)；风机效率：70%；\n功能段：混合过滤段（G4）、中效过滤段（F7）、亚高效过滤段（H11）、盘管段、出风段；\n平时：风量：6000m3/h；全压：520Pa；静压：400Pa；电功率/电压：1.5/380kW/V；转速：1400r/min；噪声：60dB(A)；风机效率：70%；\n功能段：混进风段、风机段；参考尺寸：2600（L）x1400（W）x1400（H）；\n备注：双风机，平疫转换，风机定频，自带控制柜；\n注：\n1、风机电机功率应以最终采购的设备为准；只有当设备确定具体型号，并由相关单位提供参数及控制要求后，相应电气配电设备；\n2、、所有混流加压风机、离心式风机箱、轴流风机、离心式管道风机上必须按设计编号在箱体的醒目位置打上金属标牌以便安装；\n3、所有减振器需待设备的厂家确定后，根据设备的重量再由专业公司进行二次选型；\n4、粗效过滤段（G4）：效率≥80%、初阻力≤50Pa，终阻力≤100Pa；中效过滤段（F7）：效率≥90%，初阻力≤100Pa；终阻力≤200Pa；亚高效过滤器（H11）：效率≥99.97%，初阻力≤250Pa，终阻力≤500Pa；\n5、所有加压风机均为吊装。","台",{"$nulls":10},4,4,null,"4#楼"]
[105,"箱型离心排风机","PF-3-W-7/15/16/17；服务区域：2/3/5/6层病房污染区；使用时段：\n疫情：风量：6000m3/h；全压：600Pa；静压：500Pa；电功率/电压：3/380kW/V；转速：1350r/min；噪声：59dB(A)；风机效率：70%；\n功能段：混合过滤段（G4）、中效过滤段（F7）、亚高效过滤段（H11）、盘管段、出风段；\n平时：风量：3500m3/h；全压：520Pa；静压：400Pa；电功率/电压：1.5/380kW/V；转速：1400r/min；噪声：60dB(A)；风机效率：70%；\n功能段：进风段、风机段；参考尺寸：2500（L）x1200（W）x1400（H）；\n备注：双风机，平疫转换，风机定频，自带控制柜；\n注：\n1、风机电机功率应以最终采购的设备为准；只有当设备确定具体型号，并由相关单位提供参数及控制要求后，相应电气配电设备；\n2、、所有混流加压风机、离心式风机箱、轴流风机、离心式管道风机上必须按设计编号在箱体的醒目位置打上金属标牌以便安装；\n3、所有减振器需待设备的厂家确定后，根据设备的重量再由专业公司进行二次选型；\n4、粗效过滤段（G4）：效率≥80%、初阻力≤50Pa，终阻力≤100Pa；中效过滤段（F7）：效率≥90%，初阻力≤100Pa；终阻力≤200Pa；亚高效过滤器（H11）：效率≥99.97%，初阻力≤250Pa，终阻力≤500Pa；\n5、所有加压风机均为吊装。","台",{"$nulls":10},4,4,null,"4#楼"]
[106,"箱型离心排风机","PF-7-W-12/13/14/19；服务区域：2/3/5/6层病房污染区；使用时段：平时+疫情；\n风量：2000m3/h；全压：380Pa；静压：350Pa；电功率/电压：0.75/380kW/V；转速：1100r/min；\n噪声：56dB(A)；风机效率：70%；\n功能段：进风段、粗效过滤段（G4）、中效过滤段（F7）、亚高效过滤段（H11）、风机段；\n备注：单风机，风机定频；\n注：\n1、风机电机功率应以最终采购的设备为准；只有当设备确定具体型号，并由相关单位提供参数及控制要求后，相应电气配电设备；\n2、、所有混流加压风机、离心式风机箱、轴流风机、离心式管道风机上必须按设计编号在箱体的醒目位置打上金属标牌以便安装；\n3、所有减振器需待设备的厂家确定后，根据设备的重量再由专业公司进行二次选型；\n4、粗效过滤段（G4）：效率≥80%、初阻力≤50Pa，终阻力≤100Pa；中效过滤段（F7）：效率≥90%，初阻力≤100Pa；终阻力≤200Pa；亚高效过滤器（H11）：效率≥99.97%，初阻力≤250Pa，终阻力≤500Pa；\n5、所有加压风机均为吊装。","台",{"$nulls":10},4,4,null,"4#楼"]
[107,"箱型离心排风机","PF-7-W-8；服务区域：3#接触类传染病门诊污染区；使用时段：\n疫情：风量：16000m3/h；全压：600Pa；静压：500Pa；电功率/电压：7.5/380kW/V；转速：1000r/min；噪声：63dB(A)；风机效率：70%；\n功能段：进风段、粗效过滤段（G4）、中效过滤段（F7）、亚高效过滤段（H11）、风机段；\n平时：风量：5000m3/h；全压：500Pa；静压：400Pa；电功率/电压：1.5/380kW/V；转速：1000r/min；噪声：64dB(A)；风机效率：70%；\n功能段：进风段、风机段；参考尺寸：3000（L）x1700（W）x1800（H）；\n备注：双风机，平疫转换，风机定频，自带控制柜；\n注：\n1、风机电机功率应以最终采购的设备为准；只有当设备确定具体型号，并由相关单位提供参数及控制要求后，相应电气配电设备；\n2、、所有混流加压风机、离心式风机箱、轴流风机、离心式管道风机上必须按设计编号在箱体的醒目位置打上金属标牌以便安装；\n3、所有减振器需待设备的厂家确定后，根据设备的重量再由专业公司进行二次选型；\n4、粗效过滤段（G4）：效率≥80%、初阻力≤50Pa，终阻力≤100Pa；中效过滤段（F7）：效率≥90%，初阻力≤100Pa；终阻力≤200Pa；亚高效过滤器（H11）：效率≥99.97%，初阻力≤250Pa，终阻力≤500Pa；\n5、所有加压风机均为吊装。","台",{"$nulls":10},1,1,null,"4#楼"]
[null,"轴流加压风机","JY-4-W-1/3；风量:58500m3/h；全压:740Pa；电功率/电压：18.5/380；转速：980r/min；\n噪声：92dB(A)；风机效率：75%；","台",{"$nulls":10},2,2,null,"4#楼"]
[null,"轴流加压风机","JY-4-W-1/3；风量:31000m3/h；全压:600Pa；电功率/电压：7.5/380；转速：1440r/min；\n噪声：86dB(A)；风机效率：75%；","台",{"$nulls":10},2,2,null,"4#楼"]
[null,"轴流加压风机","JY-4-W-5；风量:31000m3/h；全压:600Pa；电功率/电压：7.5/380；转速：1440r/min；\n噪声：86dB(A)；风机效率：75%；","台",{"$nulls":10},1,1,null,"4#楼"]
[null,"轴流加压风机","JY-4-W-6；风量:30350m3/h；全压:700Pa；电功率/电压：11/380；转速：1460r/min；\n噪声：88dB(A)；风机效率：75%；","台",{"$nulls":10},1,1,null,"4#楼"]
[null,"轴流排烟风机","PY-4-W-1；风量:18000m3/h；全压:620Pa；电功率/电压：5.5/380；转速：1450r/min；\n噪声：86dB(A)；风机效率：75%；280℃下工作不小于30min；","台",{"$nulls":10},1,1,null,"4#楼"]
[null,"轴流排烟风机","PY-4-W-2；风量:36000m3/h；全压:668Pa；电功率/电压：11/380；转速：1450r/min；\n噪声：88dB(A)；风机效率：75%；280℃下工作不小于30min；","台",{"$nulls":10},1,1,null,"4#楼"]
[170,"壁式轴流排风机","PQ-5-W-11；\n风量：1200m³/h；全压：127Pa；功率：0.12/380V；转速：2900rpm,噪声：65dB(A)；\n风机效率75%；","台",{"$nulls":10},5,5,"防排烟图纸上","4#楼"]
[115,"板式高压静电空气净化装置","JH-1；适用风量：0~340m3/h；设备参考尺寸：L×W×H(mm)=485×250×100；重量：2.6Kg；\n电压/频率：220V/50HZ；功率：5W；风阻：＜15Pa；去除率(%)：微生物一次通过净化效率＞90%；PM2.5一次通过净化效率＞90%；配套使用的风机盘管编号 FP-34；","台",null,24,7,7,null,7,7,{"$nulls":4},{"$f":"SUM(E97:O97)","v":52},"风盘净化器","4#楼"]
[116,"板式高压静电空气净化装置","JH-2；适用风量：341~510m3/h；设备参考尺寸：L×W×H(mm)=635×250×100；重量：3.2Kg；\n电压/频率：220V/50HZ；功率：10W；风阻：＜15Pa；去除率(%)：微生物一次通过净化效率＞90%；PM2.5一次通过净化效率＞90%；配套使用的风机盘管编号 FP-51；","台",null,6,3,3,null,3,3,{"$nulls":4},18,"风盘净化器","4#楼"]
[117,"板式高压静电空气净化装置","JH-3；适用风量：511~680m3/h；设备参考尺寸：L×W×H(mm)=725×250×100；重量：3.6Kg；\n电压/频率：220V/50HZ；功率：10W；风阻：＜15Pa；去除率(%)：微生物一次通过净化效率＞90%；PM2.5一次通过净化效率＞90%；配套使用的风机盘管编号 FP-68；","台",null,8,10,10,null,10,10,{"$nulls":4},48,"风盘净化器","4#楼"]
[118,"板式高压静电空气净化装置","JH-4；适用风量：681~850m3/h；设备参考尺寸：L×W×H(mm)=775×250×100；重量：4.2Kg；\n电压/频率：220V/50HZ；功率：10W；风阻：＜15Pa；去除率(%)：微生物一次通过净化效率＞90%；PM2.5一次通过净化效率＞90%；配套使用的风机盘管编号 FP-85；","台",null,14,16,16,null,16,16,{"$nulls":4},78,"风盘净化器","4#楼"]
[119,"板式高压静电空气净化装置","JH-5；适用风量：851~1020m3/h；设备参考尺寸：L×W×H(mm)=875×250×100；重量：4.6Kg；\n电压/频率：220V/50HZ；功率：10W；风阻：＜15Pa；去除率(%)：微生物一次通过净化效率＞90%；PM2.5一次通过净化效率＞90%；配套使用的风机盘管编号 FP-102；","台",null,null,15,15,null,15,15,{"$nulls":4},60,"风盘净化器","4#楼"]
[120,"板式高压静电空气净化装置","JH-6；适用风量：1191~1360m3/h；设备参考尺寸：L×W×H(mm)=1255×250×100；重量：6.3Kg；\n电压/频率：220V/50HZ；功率：15W；风阻：＜15Pa；去除率(%)：微生物一次通过净化效率＞90%；PM2.5一次通过净化效率＞90%；配套使用的风机盘管编号 FP-136；","台",null,2,{"$nulls":9},2,"风盘净化器","4#楼"]
[121,"板式高压静电空气净化装置","JH-7；适用风量：1701~2040m3/h；设备参考尺寸：L×W×H(mm)=1700×250×100；重量：6.3Kg；\n电压/频率：220V/50HZ；功率：20W；风阻：＜15Pa；去除率(%)：微生物一次通过净化效率＞90%；PM2.5一次通过净化效率＞90%；配套使用的风机盘管编号 FP-204；","台",{"$nulls":11},0,"风盘净化器","4#楼"]
[125,"4#楼设备总计",null,"台",{"$nulls":11},{"$f":"SUM(P80:P103)","v":295}]
[133,"板式高压静电空气净化装置","JH-1；适用风量：0~340m3/h；设备参考尺寸：L×W×H(mm)=485×250×100；重量：2.6Kg；\n电压/频率：220V/50HZ；功率：5W；风阻：＜15Pa；去除率(%)：微生物一次通过净化效率＞90%；PM2.5一次通过净化效率＞90%；配套使用的风机盘管编号 FP-34；","台",null,4,7,7,null,2,{"$nulls":5},{"$f":"SUM(E105:O105)","v":20},"风盘净化器","5#楼"]
[134,"板式高压静电空气净化装置","JH-2；适用风量：341~510m3/h；设备参考尺寸：L×W×H(mm)=635×250×100；重量：3.2Kg；\n电压/频率：220V/50HZ；功率：10W；风阻：＜15Pa；去除率(%)：微生物一次通过净化效率＞90%；PM2.5一次通过净化效率＞90%；配套使用的风机盘管编号 FP-51；","台",null,null,2,null,null,6,{"$nulls":5},8,"风盘净化器","5#楼"]
[135,"板式高压静电空气净化装置","JH-3；适用风量：511~680m3/h；设备参考尺寸：L×W×H(mm)=725×250×100；重量：3.6Kg；\n电压/频率：220V/50HZ；功率：10W；风阻：＜15Pa；去除率(%)：微生物一次通过净化效率＞90%；PM2.5一次通过净化效率＞90%；配套使用的风机盘管编号 FP-68；","台",null,null,25,28,2,12,{"$nulls":5},67,"风盘净化器","5#楼"]
[136,"板式高压静电空气净化装置","JH-4；适用风量：681~850m3/h；设备参考尺寸：L×W×H(mm)=775×250×100；重量：4.2Kg；\n电压/频率：220V/50HZ；功率：10W；风阻：＜15Pa；去除率(%)：微生物一次通过净化效率＞90%；PM2.5一次通过净化效率＞90%；配套使用的风机盘管编号 FP-85；","台",null,6,{"$nulls":3},2,{"$nulls":5},8,"风盘净化器","5#楼"]
[137,"板式高压静电空气净化装置","JH-5；适用风量：851~1020m3/h；设备参考尺寸：L×W×H(mm)=875×250×100；重量：4.6Kg；\n电压/频率：220V/50HZ；功率：10W；风阻：＜15Pa；去除率(%)：微生物一次通过净化效率＞90%；PM2.5一次通过净化效率＞90%；配套使用的风机盘管编号 FP-102；","台",null,4,11,13,{"$nulls":7},28,"风盘净化器","5#楼"]
[138,"板式高压静电空气净化装置","JH-6；适用风量：1191~1360m3/h；设备参考尺寸：L×W×H(mm)=1255×250×100；重量：6.3Kg；\n电压/频率：220V/50HZ；功率：15W；风阻：＜15Pa；去除率(%)：微生物一次通过净化效率＞90%；PM2.5一次通过净化效率＞90%；配套使用的风机盘管编号 FP-136；","台",{"$nulls":5},6,{"$nulls":5},6,"风盘净化器","5#楼"]
[139,"板式高压静电空气净化装置","JH-7；适用风量：1701~2040m3/h；设备参考尺寸：L×W×H(mm)=1700×250×100；重量：6.3Kg；\n电压/频率：220V/50HZ；功率：20W；风阻：＜15Pa；去除率(%)：微生物一次通过净化效率＞90%；PM2.5一次通过净化效率＞90%；配套使用的风机盘管编号 FP-204；","台",{"$nulls":11},0,"风盘净化器","5#楼"]
[140,"管道离心排风机","PF-5-1-1~4；\n风量：1800m³/h；全压：160Pa；功率：0.25/380V；转速：690rpm,噪声：57dB(A)；\n风机效率68%；气体灭火后排风；","台",null,4,{"$nulls":9},{"$f":"SUM(E112:O112)","v":4},"防排烟图纸上","5#楼"]
[141,"管道离心排风机","PF-5-1-5/PF-5-1-6；；\n风量：1800m³/h；全压：160Pa；功率：0.25/380V；转速：690rpm,噪声：57dB(A)；\n风机效率68%；","台",null,2,{"$nulls":9},{"$f":"SUM(E113:O113)","v":2},null,"5#楼"]
[144,"管道离心排风机","PF-5-2-1/4/6/7；；\n风量：1000m³/h；全压：138Pa；功率：0.09/380V；转速：690rpm,噪声：52dB(A)；\n风机效率68%；","台",null,null,4,{"$nulls":8},{"$f":"SUM(E114:O114)","v":4},null,"5#楼"]
[145,"管道离心排风机","PF-5-2-2/3；\n风量：1260m³/h；全压：100Pa；功率：0.09/380V；转速：690rpm,噪声：52dB(A)；\n风机效率68%；","台",null,null,2,{"$nulls":8},{"$f":"SUM(E115:O115)","v":2},null,"5#楼"]
[146,"管道离心排风机","PF-5-2-5；\n风量：4500m³/h；全压：220Pa；功率：0.75/380V；转速：550rpm,噪声：63dB(A)；\n风机效率68%；","台",null,null,1,{"$nulls":8},{"$f":"SUM(E116:O116)","v":1},null,"5#楼"]
[149,"管道离心排风机","PF-5-3-1/4；\n风量：600m³/h；全压：80Pa；功率：0.04/380V；转速：690rpm,噪声：46dB(A)；\n风机效率68%；","台",{"$nulls":3},2,{"$nulls":7},{"$f":"SUM(E117:O117)","v":2},null,"5#楼"]
[150,"管道离心排风机","PF-5-3-2/3；\n风量：800m³/h；全压：156Pa；功率：0.09/380V；转速：690rpm,噪声：52dB(A)；\n风机效率68%；","台",{"$nulls":3},2,{"$nulls":7},{"$f":"SUM(E118:O118)","v":2},null,"5#楼"]
[151,"管道离心排风机","PF-5-3-5；\n风量：4500m³/h；全压：220Pa；功率：0.75/380V；转速：550rpm,噪声：63dB(A)；\n风机效率68%；","台",{"$nulls":3},1,{"$nulls":7},{"$f":"SUM(E119:O119)","v":1},null,"5#楼"]
[152,"管道离心排风机","PF-5-3-6 ；\n风量：1000m³/h；全压：138Pa；功率：0.09/380V；转速：690rpm,噪声：52dB(A)；\n风机效率68%；","台",{"$nulls":3},1,{"$nulls":7},{"$f":"SUM(E120:O120)","v":1},null,"5#楼"]
[153,"管道离心排风机","PF-5-3-7 ；\n风量：2100m³/h；全压：285Pa；功率：0.37/380V；转速：690rpm,噪声：61dB(A)；\n风机效率68%；","台",{"$nulls":3},1,{"$nulls":7},{"$f":"SUM(E121:O121)","v":1},null,"5#楼"]
[156,"管道离心送风机","PF-5-4-1；\n风量：1000m³/h；全压：138Pa；功率：0.09/380V；转速：690rpm,噪声：52dB(A)；\n风机效率68%；","台",{"$nulls":4},1,{"$nulls":6},{"$f":"SUM(E122:O122)","v":1},null,"5#楼"]
[157,"管道离心送风机","PF-5-4-2；\n风量：1260m³/h；全压：100Pa；功率：0.09/380V；转速：690rpm,噪声：52dB(A)；\n风机效率68%；平时排风兼气体灭火后排风；","台",{"$nulls":4},1,{"$nulls":6},{"$f":"SUM(E123:O123)","v":1},"防排烟图纸上"]
[158,"组合式空调机组","ZK-5-4-1~2/ZK-5-5-1~2；服务区域：四/五楼公共区域；使用时段：平时；\n水系统形式：两管制；额定风量：10000m3/h；制冷量：74.2KW；制热量：138.1KW；\n水流量：12.6m3/h；水阻力：≤70KPa；进出水管管径：DN65 DN(mm)；\n排管排数：6排；承压：1.6MPa；机外余压：500Pa；电功率/电压：5.5/380kW/V；\n噪音：58dB(A)；风机效率：74%；单位风量耗功率：0.22W/(m3/h)；\n箱板厚度：50mm；参考尺寸LxWxH（mm）=3600x1405x1260；\n功能段：混合过滤段（G4）、中效过滤段（F7）、高效过滤段（H11）、盘管段、出风段；\n备注：\n1、过渡季节全新风运行；\n2、供冷：进风干/湿球温度：27°C/19.5°c；\n3、供热：进风工况：21°C(干球）；供热进出水温度：60°C/50°C；供冷进出水温度：7°C/12°C；\n4、空调机组盘管迎面风速不大于2.5m/s；\n5、所有空调机组在订货前均需按图核实进风口、新风口、回风口方向和大小；\n6、所有减振器需待设备的厂家确定后，根据设备的重量再由专业公司进行二次选型；\n7、混合过滤段（G4）：效率≥80%、初阻力≤50Pa，终阻力≤100Pa；中效过滤段（F7）：效率≥90%，初阻力≤100Pa；终阻力≤200Pa；亚高效过滤器（H11）：效率≥99.97%，初阻力≤250Pa，终阻力≤500Pa；","台",{"$nulls":4},2,2,{"$nulls":5},{"$f":"SUM(E124:O124)","v":4},null,"5#楼"]
[159,"管道离心送风机","PF-5-5-1；\n风量：1000m³/h；全压：138Pa；功率：0.09/380V；转速：690rpm,噪声：52dB(A)；\n风机效率68%；","台",{"$nulls":5},1,{"$nulls":5},{"$f":"SUM(E125:O125)","v":1},null,"5#楼"]
[160,"管道离心送风机","PF-5-5-2；\n风量：2700m³/h；全压：210Pa；功率：0.37/380V；转速：690rpm,噪声：61dB(A)；\n风机效率68%；","台",{"$nulls":5},1,{"$nulls":5},{"$f":"SUM(E126:O126)","v":1},null,"5#楼"]
[161,"管道离心送风机","PF-5-5-3；\n风量：1600m³/h；全压：188Pa；功率：0.25/380V；转速：690rpm,噪声：57dB(A)；\n风机效率68%；","台",{"$nulls":5},1,{"$nulls":5},{"$f":"SUM(E127:O127)","v":1},null,"5#楼"]
[162,"管道离心送风机","PF-5-5-4；\n风量：3600m³/h；全压：373Pa；功率：0.75/380V；转速：690rpm,噪声：67dB(A)；\n风机效率68%；平时排风兼气体灭火后排风；","台",{"$nulls":5},1,{"$nulls":5},{"$f":"SUM(E128:O128)","v":1},"防排烟图纸上","5#楼"]
[165,"箱型离心排风机","PF-5-W-1~2；\n风量：18000m³/h；全压：550Pa；功率：7.5/380V；转速：800rpm,噪声：64dB(A)；\n风机效率68%；单位风量耗功率(>=10000m3/h)：0.26W/(m3/h)；\n备注：风机定频，排风设置高效过滤器（H11）,平时小风量，过渡季节大风量运行；\n参考尺寸：3150x1400x1000；","台",{"$nulls":10},2,{"$f":"SUM(E129:O129)","v":2},null,"5#楼"]
[166,"箱型离心排风机","PF-5-W-3~6；\n风量：15000m³/h；全压：550Pa；功率：5.5/380V；转速：950rpm,噪声：62dB(A)；\n风机效率68%；单位风量耗功率(>=10000m3/h)：0.26W/(m3/h)；\n备注：风机定频，排风设置高效过滤器（H11）,平时小风量，过渡季节大风量运行；\n参考尺寸：2800x1200x1000；","台",{"$nulls":10},4,4,null,"5#楼"]
[167,"箱型离心排风机","PF-5-W-7~10；\n风量：10000m³/h；全压：550Pa；功率：4.0/380V；转速：1100rpm,噪声：63dB(A)；\n风机效率68%；单位风量耗功率(>=10000m3/h)：0.26W/(m3/h)；\n备注：风机定频，排风设置高效过滤器（H11）,平时小风量，过渡季节大风量运行；\n参考尺寸：2200x1000x1000；","台",{"$nulls":10},4,4,null,"5#楼"]
[168,"壁式轴流排风机","PQ-5-W-1~7 /8/10/11；\n风量：1200m³/h；全压：127Pa；功率：0.12/380V；转速：2900rpm,噪声：65dB(A)；\n风机效率75%；","台",{"$nulls":10},10,10,null,"5#楼"]
[169,"壁式轴流排风机","PQ-5-W-9；\n风量：1800m³/h；全压：142Pa；功率：0.18/380V；转速：2900rpm,噪声：65dB(A)；\n风机效率75%；","台",{"$nulls":10},1,1,null,"5#楼"]
[170,"壁式轴流排风机","PQ-5-W-11；\n风量：1200m³/h；全压：127Pa；功率：0.12/380V；转速：2900rpm,噪声：65dB(A)；\n风机效率75%；","台",{"$nulls":10},4,4,"防排烟图纸上","5#楼"]
[171,"管道离心送风机","SF-5-1-1~2；\n风量：1600m³/h；全压：188Pa；功率：0.25/380V；转速：690rpm,噪声：57dB(A)；\n风机效率68%；气体灭火后送风；","台",null,2,{"$nulls":9},2,"防排烟图纸上","5#楼"]
[172,"管道离心送风机","SF-5-4-1；\n风量：3000m³/h；全压：220Pa；功率：0.37/380V；转速：550rpm,噪声：60dB(A)；\n风机效率68%；平时送风兼气体灭火后补风；","台",{"$nulls":4},1,{"$nulls":6},1,"防排烟图纸上","5#楼"]
[173,"管道离心送风机","SF-5-5-1；\n风量：1000m³/h；全压：138Pa；功率：0.09/380V；转速：690rpm,噪声：52dB(A)；\n风机效率68%；平时送风兼气体灭火后补风；","台",{"$nulls":5},1,{"$nulls":5},1,"防排烟图纸上","5#楼"]
[174,"轴流排烟风机","PY-5-W-1/PY-5-W-2；\n风量：36000m³/h；全压：668Pa；功率：11/380V；转速：1450rpm,噪声：88dB(A)；\n风机效率75%；备注：280℃下工作不小于30min；","台",{"$nulls":10},2,2,"防排烟图纸上","5#楼"]
[175,"轴流加压风机","JY-5-W-1~4；\n风量：40000m³/h；全压：690Pa；功率：11/380V；转速：1460rpm,噪声：88dB(A)；\n风机效率75%；","台",{"$nulls":10},4,4,"防排烟图纸上","5#楼"]
[176,"5#楼设备总计",null,"台",{"$nulls":11},{"$f":"SUM(P105:P139)","v":202}]
[177,"吊顶式排气扇","PQ-01；\n风量：200m³/h,风压：160Pa；重量：6kg，功率：60W；噪声：35dB(A)；配金属止回阀；","台",null,7,9,9,9,1,9,{"$nulls":4},{"$f":"SUM(E141:O141)","v":44},null,"6#楼"]
[178,"吊顶式排气扇","PQ-02；\n风量：140m³/h,风压：100Pa；重量：5kg，功率：25W；噪声：46dB(A)；配金属止回阀；","台",{"$nulls":3},1,null,22,{"$nulls":5},{"$f":"SUM(E142:O142)","v":23},null,"6#楼"]
[179,"吊顶式排气扇","PQ-03；\n风量：500m³/h,风压：260Pa；重量：7kg，功率：80W；噪声：50dB(A)；配金属止回阀；","台",null,1,3,null,null,2,{"$nulls":5},{"$f":"SUM(E143:O143)","v":6},null,"6#楼"]
[189,"低噪音混流风机\n（防爆风机）","PF-6-1-1；\n风量：3549m³/h；功率：0.75kW/380V；转速：960rpm,噪声：67dB(A)；\n全压：243Pa，风机效率0.75","台",null,1,{"$nulls":9},{"$f":"SUM(E144:O144)","v":1},null,"6#楼"]
[192,"低噪音离心式管道风机","PF-6-2-1/PF-6-2-2；\n风量：3340m³/h；功率：0.75kW/380V；转速：1450rpm,噪声：61dB(A)；全压：308Pa，风机效率0.75；","台",null,null,2,{"$nulls":8},{"$f":"SUM(E145:O145)","v":2},null,"6#楼"]
[194,"低噪音混流风机","PF-6-3-1；\n风量：2642m³/h；功率：0.25kW/380V；转速：960rpm,噪声：64dB(A)；全压：86Pa，风机效率0.75；","台",{"$nulls":3},1,{"$nulls":7},{"$f":"SUM(E146:O146)","v":1},null,"6#楼"]
[196,"低噪音混流风机","PF-6-4-1；\n风量：2642m³/h；功率：0.25kW/380V；转速：960rpm,噪声：64dB(A)；全压：86Pa，风机效率0.75；","台",{"$nulls":4},1,{"$nulls":6},{"$f":"SUM(E147:O147)","v":1},null,"6#楼"]
[200,"低噪音混流风机\n（防爆风机）","PF-6-W-1；厨房事故通风兼平时通风；\n风量:18342m3/h；功率：2.2KW/380V；转速：720rpm,噪声：78dB(A)，重量196kg；\n全压：288Pa，风机效率0.75,单位风量耗功率：0.107W/(m3/h)；","台",{"$nulls":10},1,{"$f":"SUM(E148:O148)","v":1},null,"6#楼"]
[201,"壁式轴流风机","PF-6-W-2；\n风量：1000m³/h；全压：30Pa；功率：0.025kW/220V；重量：14kg，转速：1450rpm；噪声：50dB(A)；","台",{"$nulls":10},1,{"$f":"SUM(E149:O149)","v":1},null,"6#楼"]
[202,"壁式轴流风机","PF-6-W-3；\n风量：1970m³/h；全压：54Pa；功率：0.06kW/220V；重量：22kg，转速：1450rpm；噪声：59dB(A)；","台",{"$nulls":10},1,{"$f":"SUM(E150:O150)","v":1},null,"6#楼"]
[203,"高温消防轴流排烟风机\n HTF-I-6.5\n（280℃下连续运行30分钟以上）","PY-6-W-1；\n风量：18000m³/h；全压：630Pa,功率：5.5kW；效率>70%；噪声:86dB(A)；转速:1450rpm；","台",{"$nulls":10},1,{"$f":"SUM(E151:O151)","v":1},"防排烟","6#楼"]
[204,"高温消防轴流排烟风机\n HTF-I-№9B\n（280℃下连续运行30分钟以上）","PY-6-W-2；\n风量：36000m³/h；全压：668Pa,功率：11kW；效率>70%；噪声:89dB(A)；转速:1450rpm；","台",{"$nulls":10},1,{"$f":"SUM(E152:O152)","v":1},"防排烟","6#楼"]
[205,"风管式全截面蜂巢式\n高压静电光催化空气净化装置\n（安装在新风机进风管）","JH-01；\n处理风量：2001~4000m3/h；风阻：＜25Pa,功率：40W/220V；外形尺寸：根据新风机进风口尺寸定制；\nPM2.5一次通过净化效率＞90%,杀菌率≥99%，TVOC和甲醛净化效率＞90%，初效、蜂巢式静电模块、光催酶网、高能离子紫外线杀菌管四段结构","台",{"$nulls":10},4,{"$f":"SUM(E153:O153)","v":4},null,"6#楼"]
[206,"风管式全截面蜂巢式\n高压静电光催化空气净化装置\n（安装在新风机进风管）","JH-02；\n处理风量：＜2000m3/h；风阻：＜25Pa,功率：20W/220V；外形尺寸：根据新风机进风口尺寸定制；\nPM2.5一次通过净化效率＞90%,杀菌率≥99%，TVOC和甲醛净化效率＞90%，初效、蜂巢式静电模块、光催酶网、高能离子紫外线杀菌管四段结构","台",{"$nulls":10},6,{"$f":"SUM(E154:O154)","v":6},null,"6#楼"]
[207,"6#楼设备总计",null,"台",{"$nulls":11},{"$f":"SUM(P141:P154)","v":93}]
[215,"板式高压静电空气净化装置","JH-1；适用风量：0~340m3/h；设备参考尺寸：L×W×H(mm)=485×250×100；重量：2.6Kg；\n电压/频率：220V/50HZ；功率：5W；风阻：＜15Pa；去除率(%)：微生物一次通过净化效率＞90%；PM2.5一次通过净化效率＞90%；配套使用的风机盘管编号 FP-34；","台",null,23,3,7,null,7,7,7,7,4,null,{"$f":"SUM(E156:O156)","v":65},"风盘净化器","7#楼"]
[216,"板式高压静电空气净化装置","JH-2；适用风量：341~510m3/h；设备参考尺寸：L×W×H(mm)=635×250×100；重量：3.2Kg；\n电压/频率：220V/50HZ；功率：10W；风阻：＜15Pa；去除率(%)：微生物一次通过净化效率＞90%；PM2.5一次通过净化效率＞90%；配套使用的风机盘管编号 FP-51；","台",null,5,2,3,null,3,3,3,3,1,null,23,"风盘净化器","7#楼"]
[217,"板式高压静电空气净化装置","JH-3；适用风量：511~680m3/h；设备参考尺寸：L×W×H(mm)=725×250×100；重量：3.6Kg；\n电压/频率：220V/50HZ；功率：10W；风阻：＜15Pa；去除率(%)：微生物一次通过净化效率＞90%；PM2.5一次通过净化效率＞90%；配套使用的风机盘管编号 FP-68；","台",null,7,5,10,null,10,10,10,10,3,null,65,"风盘净化器","7#楼"]
[218,"板式高压静电空气净化装置","JH-4；适用风量：681~850m3/h；设备参考尺寸：L×W×H(mm)=775×250×100；重量：4.2Kg；\n电压/频率：220V/50HZ；功率：10W；风阻：＜15Pa；去除率(%)：微生物一次通过净化效率＞90%；PM2.5一次通过净化效率＞90%；配套使用的风机盘管编号 FP-85；","台",null,15,6,16,null,16,16,16,16,5,null,106,"风盘净化器","7#楼"]
[219,"板式高压静电空气净化装置","JH-5；适用风量：851~1020m3/h；设备参考尺寸：L×W×H(mm)=875×250×100；重量：4.6Kg；\n电压/频率：220V/50HZ；功率：10W；风阻：＜15Pa；去除率(%)：微生物一次通过净化效率＞90%；PM2.5一次通过净化效率＞90%；配套使用的风机盘管编号 FP-102；","台",null,0,7,15,null,15,13,13,13,17,null,93,"风盘净化器","7#楼"]
[220,"板式高压静电空气净化装置","JH-6；适用风量：1191~1360m3/h；设备参考尺寸：L×W×H(mm)=1255×250×100；重量：6.3Kg；\n电压/频率：220V/50HZ；功率：15W；风阻：＜15Pa；去除率(%)：微生物一次通过净化效率＞90%；PM2.5一次通过净化效率＞90%；配套使用的风机盘管编号 FP-136；","台",null,2,14,{"$nulls":3},1,1,1,null,null,19,"风盘净化器","7#楼"]
[221,"板式高压静电空气净化装置","JH-7；适用风量：1701~2040m3/h；设备参考尺寸：L×W×H(mm)=1700×250×100；重量：6.3Kg；\n电压/频率：220V/50HZ；功率：20W；风阻：＜15Pa；去除率(%)：微生物一次通过净化效率＞90%；PM2.5一次通过净化效率＞90%；配套使用的风机盘管编号 FP-204；","台",{"$nulls":9},6,null,6,"风盘净化器","7#楼"]
[222,"箱型离心排风机","PF-7-1-1；使用时段：平时+疫情；系统功能：平时排风；服务区域：职业病门诊清洁区；\n风量:2150m3/h；全压:250Pa；静压：237Pa；电功率/电压：0.18/220；转速：1400r/min；\n噪声：61dB(A)；风机效率：70%；\n功能段：进风段、风机段；备注：单风机，风机变频；","台",null,1,{"$nulls":9},1,"备注：单风机，风机变频；","7#楼","图纸参数：风量:2150m3/h；全压:350Pa；0.37kw，380v；备注：单风机，风机变频；"]
[223,"管道离心排风机；","PF-7-1-2/PF-7-1-3；使用时段：平时；系统功能：事故（后）排风；服务区域：CT/DR；\n风量:2200m3/h；全压:250Pa；静压：250Pa；电功率/电压：0.37/220；转速：1450r/min；\n噪声：61dB(A)；风机效率：70%；\n功能段：进风段、风机段；","台",null,2,{"$nulls":9},2,null,"7#楼","图纸参数：风量:2200m3/h；全压:250Pa；0.37kw，380v；"]
[224,"轴流风机","SF-7-1-1/2；№3.15；\n风量:1800m3/h；全压:294Pa；0.37kw，380v；","台",null,2,{"$nulls":9},2,null,"7#楼","设备清单参数：管道离心送风机；\n使用时段：平时；系统功能：平时送风；服务区域：CT/DR；风量:1800m3/h；全压:294Pa；静压：250Pa；电功率/电压：0.37/220；转速：1450r/min；\n噪声：61dB(A)；风机效率：70%；\n功能段：气体灭火后补风；"]
[234,"箱型离心排风机","PF-7-W-1；服务区域：3/5~8层病房清洁区；使用时段：平时+疫情；系统功能：平时排风；\n风量:13500m3/h；全压:650Pa；静压：500Pa；电功率/电压：5.5/380；转速：1200r/min；\n噪声：64dB(A)；风机效率：70%；功能段：进风段、风机段；","台",{"$nulls":10},1,{"$f":"SUM(E166:O166)","v":1},null,"7#楼"]
[235,"箱型离心排风机","PF-7-W-2~4/7/8；服务区域：3/5~8层病房半污染区；系统功能：平时排风；使用时段：\n疫情：风量:8000m3/h；全压:700Pa；静压：500Pa；电功率/电压：4/380；转速：1350r/min；\n噪声：63dB(A)；风机效率：70%；功能段：进风段、粗效过滤段（G4）、中效过滤段（F7）、亚高效过滤段（H11）、风机段,余压=500Pa；\n平时：风量:3200m3/h；全压:420Pa；静压：340Pa；电功率/电压：0.75/380；转速：1100r/min；\n噪声：58dB(A)；风机效率：70%；功能段：进风段、风机段 参考尺寸：2600（L）x1400（W）x1400（H）；备注：双风机，平疫转换，风机变频，自带控制柜；","台",{"$nulls":10},5,5,"备注：双风机，平疫转换，风机变频，自带控制柜；","7#楼"]
[236,"箱型离心排风机","PF-7-W-5；服务区域：职业病门诊半污染区；系统功能：平时排风；使用时段：\n疫情：风量:8000m3/h；全压:700Pa；静压：500Pa；电功率/电压：4/380；转速：1350r/min；\n噪声：63dB(A)；风机效率：70%；功能段：进风段、粗效过滤段（G4）、中效过滤段（F7）、亚高效过滤段（H11）、风机段,余压=500Pa；\n平时：风量:2400m3/h；全压:400Pa；静压：350Pa；电功率/电压：0.75/380；转速：1100r/min；\n噪声：56dB(A)；风机效率：70%；功能段：进风段、风机段 参考尺寸：2600（L）x1400（W）x1400（H）；备注：双风机，平疫转换，风机变频，自带控制柜；","台",{"$nulls":10},1,1,"备注：双风机，平疫转换，风机变频，自带控制柜；","7#楼"]
[237,"箱型离心排风机","PF-7-W-6；服务区域：二楼理疗活动空间；使用时段：平时，疫情关闭；系统功能：平时排风；\n风量:4500m3/h；全压:500Pa；静压：470Pa；电功率/电压：1.5/380；转速：1400r/min；\n噪声：61dB(A)；风机效率：70%；功能段：进风段、风机段；","台",{"$nulls":10},1,1,"备注：单风机，风机变频；","7#楼","设备清单：静压：670Pa；大于全压500Pa"]
[238,"箱型离心排风机","PF-7-W-9；服务区域：职业病门诊污染区；系统功能：平时排风；使用时段：\n疫情：风量:16000m3/h；全压:700Pa；静压：500Pa；电功率/电压：7.5/380；转速：1000r/min；\n噪声：63dB(A)；风机效率：70%；功能段：进风段、粗效过滤段（G4）、中效过滤段（F7）、亚高效过滤段（H11）、风机段,余压=500Pa；\n平时：风量:5000m3/h；全压:400Pa；静压：340Pa；电功率/电压：1.1/380；转速：1000r/min；\n噪声：64dB(A)；风机效率：70%；功能段：进风段、风机段 参考尺寸：3000（L）x1700（W）x1800（H）；备注：双风机，平疫转换，风机变频，自带控制柜；","台",{"$nulls":10},1,1,"备注：双风机，平疫转换，风机变频，自带控制柜；","7#楼"]
[239,"箱型离心排风机","PF-7-W-10/12/22~24；\n服务区域：3/5~8层病房污染区走道；使用时段：疫情；系统功能：平时排风；\n风量:6000m3/h；全压:600Pa；静压：440Pa；电功率/电压：3/380；转速：1500r/min；\n噪声：63dB(A)；风机效率：70%；\n功能段：进风段、粗效过滤段（G4）、中效过滤段（F7）、亚高效过滤段（H11）、风机段,余压=400Pa；\n备注：单风机，风机变频；","台",{"$nulls":10},5,5,"备注：单风机，风机变频；","7#楼"]
[240,"箱型离心排风机","PF-7-W-11、15/25~27；服务区域：3/5~8层病房污染区；系统功能：平时排风；使用时段：\n疫情：风量:8000m3/h；全压:700Pa；静压：500Pa；电功率/电压：4/380；转速：1350r/min；\n噪声：63dB(A)；风机效率：70%；功能段：进风段、粗效过滤段（G4）、中效过滤段（F7）、亚高效过滤段（H11）、风机段,余压=500Pa；\n平时：风量:4000m3/h；全压:520Pa；静压：400Pa；电功率/电压：1.5/380；转速：1400r/min；\n噪声：60dB(A)；风机效率：70%；功能段：进风段、风机段 参考尺寸：2600（L）x1400（W）x1400（H）；备注：双风机，平疫转换，风机变频，自带控制柜；","台",{"$nulls":10},5,5,"备注：双风机，平疫转换，风机变频，自带控制柜；","7#楼"]
[241,"箱型离心排风机","PF-7-W-13~14/19~21；\n服务区域：3/5~8层病房污染区卫生间；使用时段：平时+疫情；系统功能：平时排风；\n风量:2000m3/h；全压:580Pa；静压：350Pa；电功率/电压：0.75/380；转速：1100r/min；\n噪声：56dB(A)；风机效率：70%；功能段：进风段、粗效过滤段（G4）、中效过滤段（F7）、亚高效过滤段（H11）、风机段,余压=380Pa；备注：单风机，风机变频；","台",{"$nulls":10},5,5,"备注：单风机，风机变频；","7#楼"]
[242,"箱型离心排风机","PF-7-W-16；服务区域：二楼康复理疗；使用时段：平时，疫情关闭；系统功能：平时排风；\n风量:5000m3/h；全压:400Pa；静压：340Pa；电功率/电压：1.1/380；转速：1000r/min；\n噪声：64dB(A)；风机效率：70%；功能段：进风段、风机段；备注：单风机，风机变频；","台",{"$nulls":10},1,1,"备注：单风机，风机变频；","7#楼"]
[243,"箱型离心排风机","PF-7-W-17；服务区域：九楼会议室；使用时段：平时，疫情关闭；系统功能：平时排风；\n风量:5000m3/h；全压:400Pa；静压：340Pa；电功率/电压：1.1/380；转速：1000r/min；\n噪声：64dB(A)；风机效率：70%；功能段：进风段、风机段；备注：单风机，风机变频；","台",{"$nulls":10},1,1,"备注：单风机，风机变频；","7#楼"]
[244,"箱型离心排风机","PF-7-W-18；服务区域：九楼卫生间；使用时段：平时，疫情关闭；系统功能：平时排风；\n风量:2500m3/h；全压:350Pa；静压：300Pa；电功率/电压：0.55/380；转速：1450r/min；\n噪声：61dB(A)；风机效率：70%；功能段：进风段、风机段；备注：单风机，风机变频；","台",{"$nulls":10},1,1,"备注：单风机，风机变频；","7#楼"]
[245,"轴流加压风机","JY-7-W-1/JY-7-W-3；\n风量:60000m3/h；全压:880Pa；电功率/电压：22/380；转速：1470r/min；\n噪声：92dB(A)；风机效率：75%；","台",{"$nulls":10},2,2,"防排烟","7#楼"]
[246,"轴流加压风机","JY-7-W-2/JY-7-W-4；\n风量:32800m3/h；全压:750Pa；电功率/电压：11/380；转速：1460r/min；\n噪声：89dB(A)；风机效率：75%；","台",{"$nulls":10},2,2,"防排烟","7#楼"]
[247,"轴流加压风机","JY-7-W-5；\n风量:31000m3/h；全压:600Pa；电功率/电压：7.5/380；转速：1440r/min；\n噪声：86dB(A)；风机效率：75%；","台",{"$nulls":10},1,1,"防排烟","7#楼"]
[246,"轴流加压风机","JY-7-W-6；\n风量:32800m3/h；全压:750Pa；电功率/电压：11/380；转速：1460r/min；\n噪声：89dB(A)；风机效率：75%；","台",{"$nulls":10},1,1,"防排烟","7#楼"]
[248,"轴流排烟风机","PY-7-W-1；\n风量:18000m3/h；全压:630Pa；电功率/电压：5.5/380；转速：1450r/min；\n噪声：85dB(A)；风机效率：75%；280℃下工作不小于，30min；","台",{"$nulls":10},1,1,"防排烟","7#楼"]
[249,"轴流排烟风机","PY-7-W-2；\n风量:36000m3/h；全压:668Pa；电功率/电压：11/380；转速：1450r/min；\n噪声：85dB(A)；风机效率：75%；280℃下工作不小于，30min；","台",{"$nulls":10},1,1,"防排烟","7#楼"]
[250,"壁式轴流排风机","PQ-7-W-1~4；\n风量:1200m3/h；全压:127Pa；电功率/电压：0.12/380；转速：2900r/min；\n噪声：65dB(A)；风机效率：75%；","台",{"$nulls":10},4,4,null,"7#楼"]
[251,"防爆型壁式轴流排风机","PQ-7-W-5；\n风量:1200m3/h；全压:127Pa；电功率/电压：0.12/380；转速：2900r/min；\n噪声：65dB(A)；风机效率：75%；","台",{"$nulls":10},1,1,null,"7#楼"]
[253,"7#楼设备总计",{"$nulls":13},{"$f":"SUM(P156:P184)","v":422}]